Workbook

Sheet Informatie
A1: LEES ONDERSTAANDE INFO EERST!!
A3: Zowel de afgevaardigden als de reserves dienen zich aan te melden via Mijn KNHS voor de regiokampioenschappen

Sheet L1 - L2 (hidden)
A1: Selectie uitslagen
C2: 1 | D2: =FLOOR((C2+3)/4,1) -> 1 | G2: 192 | H2: 192 | I2: 190 | J2: =H2+I2 -> 382 | N2: 1 | O2: 193 | P2: 193 | Q2: 193 | R2: =P2+Q2 -> 386 | V2: 2 | W2: 198 | X2: 198 | Y2: 198 | Z2: =X2+Y2 -> 396 | AD2: 3 | AE2: 177 | AF2: 177 | AG2: 177 | AH2: =AF2+AG2 -> 354 | AL2: 4 | AM2: 178 | AN2: 178 | AO2: 178 | AP2: =AN2+AO2 -> 356 | AT2: 5 | AU2: 179 | AV2: 179 | AW2: 179 | AX2: =AV2+AW2 -> 358 | BB2: 6 | BC2: =N2+V2+AD2+AL2+AT2+BB2 -> 21 | BD2: =J2+R2+Z2+AH2+AP2+AX2 -> 2232 | BE2: =IF($O$4>0,(LARGE(($N2,$V2,$AD2,$AL2,$AT2,$BB2),1)),"0") -> 6 | BF2: =IF($O$4>0,(LARGE(($N2,$V2,$AD2,$AL2,$AT2,$BB2),2)),"0") -> 5 | BG2: 354 | BH2: 354 | BI2: =BC2-BE2-BF2 -> 10 | BJ2: =BD2-BG2-BH2 -> 1524
A3: Kring: | C3: =Instellingen!B3 -> Kring NVF | BC3: Aantal wedstrijden: | BL3: =Instellingen!B6 -> 3
A4: Klasse: | C4: L1 - L2 | F4: Aantal afval resultaten: | O4: =Instellingen!B7 -> 1
A5: Cat.: | F5: Plaatsingspunten niet gestart: | O5: =Instellingen!B5 -> 99
F6: Lokatie: | G6: =Instellingen!B36 -> Hulshorst_Nunspeet | O6: =Instellingen!B37 -> Vaassen_Wezep | W6: =Instellingen!B38 -> Dronten_Hierden | AE6: =Instellingen!B39 -> 0 | AM6: =Instellingen!B40 -> 0 | AU6: =Instellingen!B41 -> 0 | BC6: Dressuur
F7: Datum: | G7: =Instellingen!C36 -> 03_04 nov 2023 | O7: =Instellingen!C37 -> 01_02 dec 2023 | W7: =Instellingen!C38 -> 08_09_15_16 dec 2023 | AE7: =Instellingen!C39 ->  | AM7: =Instellingen!C40 ->  | AU7: =Instellingen!C41 ->  | BC7: Tot. | BD7: Tot. | BE7: afval | BF7: afval | BG7: afval | BH7: afval | BI7: Beste | BJ7: Beste
A8: Pl. | B8: Comb.nr. | C8: Ruiter/amazone | D8: Paard/pony | E8: kl. | F8: vereniging | G8: Ring | H8: pnt.C | I8: pnt.H | J8: pnt.tot | K8: ex 1 | L8: ex 2 | M8: pl. | N8: pl.p. | O8: Ring | P8: pnt.C | Q8: pnt.H | R8: pnt.tot. | S8: ex 1 | T8: ex 2 | U8: pl. | V8: pl.p. | W8: Ring | X8: pnt.C | Y8: pnt. H | Z8: pnt.tot. | AA8: ex 1 | AB8: ex 2 | AC8: pl. | AD8: pl.p. | AE8: Ring | AF8: pnt.C | AG8: pnt.H | AH8: pnt.tot. | AI8: ex 1 | AJ8: ex 2 | AK8: pl. | AL8: pl.p. | AM8: Ring | AN8: pnt.C | AO8: pnt.H | AP8: pnt.tot. | AQ8: ex 1 | AR8: ex 2 | AS8: pl. | AT8: pl.p. | AU8: Ring | AV8: pnt.C | AW8: pnt.H | AX8: pnt.tot. | AY8: ex 1 | AZ8: ex 2 | BA8: pl. | BB8: pl.p. | BC8: pl.pnt | BD8: punten | BE8: pl.pnt | BF8: pl.pnt | BG8: punten | BH8: punten | BI8: pl.pnt | BJ8: punten | BK8: Afv. | BL8: Res. | BN8: opmerking

Sheet B
A1: Selectie uitslagen
C2: 1 | D2: =FLOOR((C2+3)/4,1) -> 1 | H2: 192 | I2: 190 | J2: =H2+I2 -> 382 | N2: 1 | P2: 193 | Q2: 193 | R2: =P2+Q2 -> 386 | V2: 2 | X2: 198 | Y2: 198 | Z2: =X2+Y2 -> 396 | AD2: 3 | AF2: 177 | AG2: 177 | AH2: =AF2+AG2 -> 354 | AL2: 4 | AN2: 178 | AO2: 178 | AP2: =AN2+AO2 -> 356 | AT2: 5 | AV2: 179 | AW2: 179 | AX2: =AV2+AW2 -> 358 | BB2: 6 | BC2: =N2+V2+AD2+AL2+AT2+BB2 -> 21 | BD2: =J2+R2+Z2+AH2+AP2+AX2 -> 2232 | BE2: =IF($O$4>0,(LARGE(($N2,$V2,$AD2,$AL2,$AT2,$BB2),1)),"0") -> 6 | BF2: =IF($O$4>0,(LARGE(($N2,$V2,$AD2,$AL2,$AT2,$BB2),2)),"0") -> 5 | BG2: 354 | BH2: 354 | BI2: =BC2-BE2-BF2 -> 10 | BJ2: =BD2-BG2-BH2 -> 1524
A3: Kring: | C3: =[1]Instellingen!B3 -> Kring NVF | F3: Aantal afvaardiging Regio: | O3: 5 | BC3: Aantal wedstrijden: | BL3: =[1]Instellingen!B6 -> 3
A4: Klasse: | C4: B | F4: Aantal afval resultaten: | O4: =[1]Instellingen!B7 -> 1
A5: Cat.: | F5: Plaatsingspunten niet gestart: | O5: =[1]Instellingen!B5 -> 99 | BC5: Aantal reserves: | BL5: 2
F6: Lokatie: | G6: =[1]Instellingen!B36 -> Hulshorst_Nunspeet | O6: =[1]Instellingen!B37 -> Vaassen_Wezep | W6: =[1]Instellingen!B38 -> Dronten_Hierden | AE6: =[1]Instellingen!B39 -> 0 | AM6: =[1]Instellingen!B40 -> 0 | AU6: =[1]Instellingen!B41 -> 0 | BC6: Dressuur | BI6: Pnt. 60% regel | BL6: 180
F7: Datum: | G7: =[1]Instellingen!C36 -> 03_04 nov 2023 | O7: =[1]Instellingen!C37 -> 01_02 dec 2023 | W7: =[1]Instellingen!C38 -> 08_09_15_16 dec 2023 | AE7: =[1]Instellingen!C39 ->  | AM7: =[1]Instellingen!C40 ->  | AU7: =[1]Instellingen!C41 ->  | BC7: Tot. | BD7: Tot. | BE7: afval | BF7: afval | BG7: afval | BH7: afval | BI7: Beste | BJ7: Beste
A8: Pl. | B8: Comb.nr. | C8: Ruiter/amazone | D8: Paard/pony | E8: kl. | F8: vereniging | G8: Ring | H8: pnt.C | I8: pnt.H | J8: pnt.tot | K8: ex 1 | L8: ex 2 | M8: pl. | N8: pl.p. | O8: Ring | P8: pnt.C | Q8: pnt.H | R8: pnt.tot. | S8: ex 1 | T8: ex 2 | U8: pl. | V8: pl.p. | W8: Ring | X8: pnt.C | Y8: pnt. H | Z8: pnt.tot. | AA8: ex 1 | AB8: ex 2 | AC8: pl. | AD8: pl.p. | AE8: Ring | AF8: pnt.C | AG8: pnt.H | AH8: pnt.tot. | AI8: ex 1 | AJ8: ex 2 | AK8: pl. | AL8: pl.p. | AM8: Ring | AN8: pnt.C | AO8: pnt.H | AP8: pnt.tot. | AQ8: ex 1 | AR8: ex 2 | AS8: pl. | AT8: pl.p. | AU8: Ring | AV8: pnt.C | AW8: pnt.H | AX8: pnt.tot. | AY8: ex 1 | AZ8: ex 2 | BA8: pl. | BB8: pl.p. | BC8: pl.pnt | BD8: punten | BE8: pl.pnt | BF8: pl.pnt | BG8: punten | BH8: punten | BI8: pl.pnt | BJ8: punten | BK8: Afv. | BL8: Res. | BM8: Afv. Regio | BN8: opmerking
A9: 1 | B9: 945785NZ | C9: Kyara van der Ziel | D9: No Mercy WV | E9: B | F9: Noord Veluwe, RV. PSV | H9: 206.5 | I9: 0 | J9: =H9+I9 -> 206.5 | K9: 7 | L9: 7.5 | M9: 2 | N9: 2 | O9: 1 | P9: 202 | Q9: 0 | R9: =P9+Q9 -> 202 | S9: 6 | T9: 6.5 | U9: 2 | V9: 2 | W9: 1 | X9: 200.5 | Z9: =X9+Y9 -> 200.5 | AA9: 7 | AB9: 7 | AC9: 2 | AD9: 2 | BC9: =N9+V9+AD9+AL9+AT9+BB9 -> 6 | BD9: =J9+R9+Z9+AH9+AP9+AX9 -> 609 | BE9: =IF($O$4>0,(LARGE(($N9,$V9,$AD9,$AL9,$AT9,$BB9),1)),"0") -> 2 | BG9: 200.5 | BH9: 0 | BI9: =BC9-BE9-BF9 -> 4 | BJ9: =BD9-BG9-BH9 -> 408.5 | BK9: 1 | BN9: Kringkampioen
A10: 2 | B10: 846769RV | C10: Luna Veldkamp | D10: Royally Impressed | E10: B | F10: Heuvelruiters, RV. | J10: 0 | N10: 99 | O10: 1 | P10: 202 | Q10: 0 | R10: 202 | S10: 6 | T10: 7 | U10: 1 | V10: 1 | W10: 1 | X10: 194.5 | Z10: 194.5 | AA10: 6.5 | AB10: 7 | AC10: 3 | AD10: 3 | BC10: 103 | BD10: 396.5 | BE10: =IF($O$4>0,(LARGE(($N10,$V10,$AD10,$AL10,$AT10,$BB10),1)),"0") -> 99 | BG10: 0 | BH10: 0 | BI10: 4 | BJ10: 396.5 | BK10: 2
A11: 3 | B11: 991594MV | C11: Denise Vonk | D11: Maigret | E11: B | F11: Nunspeetse Ruiterclub, RV. | H11: 200 | I11: 0 | J11: 200 | K11: 6.5 | L11: 6.5 | M11: 4 | N11: 4 | R11: 0 | V11: 99 | W11: 1 | X11: 202.5 | Z11: 202.5 | AA11: 7 | AB11: 7 | AC11: 1 | AD11: 1 | BC11: 104 | BD11: 402.5 | BE11: =IF($O$4>0,(LARGE(($N11,$V11,$AD11,$AL11,$AT11,$BB11),1)),"0") -> 99 | BG11: 0 | BH11: 0 | BI11: 5 | BJ11: 402.5 | BK11: 3
A12: 4 | B12: 992423ND | C12: Noreen van den Dragt | D12: Nanisina | E12: B | F12: Nunspeetse Ruiterclub, RV. | H12: 197 | I12: 0 | J12: 197 | K12: 6.5 | L12: 7 | M12: 7 | N12: 7 | O12: 1 | P12: 201 | Q12: 0 | R12: 201 | S12: 7 | T12: 7 | U12: 3 | V12: 3 | W12: 1 | X12: 194.5 | Z12: 194.5 | AA12: 6.5 | AB12: 6.5 | AC12: 5 | AD12: 5 | BC12: 15 | BD12: 592.5 | BE12: =IF($O$4>0,(LARGE(($N12,$V12,$AD12,$AL12,$AT12,$BB12),1)),"0") -> 7 | BG12: 197 | BH12: 0 | BI12: 8 | BJ12: 395.5 | BK12: 4
A13: 5 | B13: 991870OK | C13: Chayenne Karel | D13: Odin Royal DDH | E13: B | F13: Heuvelruiters, RV. | H13: 185 | I13: 0 | J13: 185 | K13: 6 | L13: 6 | M13: 18 | N13: 18 | O13: 1 | P13: 201 | Q13: 0 | R13: 201 | S13: 6.5 | T13: 6.5 | U13: 4 | V13: 4 | W13: 1 | X13: 192 | Z13: 192 | AA13: 6.5 | AB13: 6.5 | AC13: 7 | AD13: 7 | BC13: 29 | BD13: 578 | BE13: =IF($O$4>0,(LARGE(($N13,$V13,$AD13,$AL13,$AT13,$BB13),1)),"0") -> 18 | BG13: 185 | BH13: 0 | BI13: 11 | BJ13: 393 | BK13: 5
A14: 6 | B14: 962598IH | C14: Tamara Van der Hilst | D14: Irma | E14: B | F14: Noord Veluwe, RV. PSV | H14: 213 | I14: 0 | J14: 213 | K14: 7.5 | L14: 8 | M14: 1 | N14: 1 | O14: 1 | P14: 192.5 | Q14: 0 | R14: 192.5 | S14: 6 | T14: 6.5 | U14: 10 | V14: 10 | Z14: 0 | AD14: 99 | BC14: 110 | BD14: 405.5 | BE14: =IF($O$4>0,(LARGE(($N14,$V14,$AD14,$AL14,$AT14,$BB14),1)),"0") -> 99 | BG14: 0 | BH14: 0 | BI14: 11 | BJ14: 405.5 | BL14: 1
A15: 7 | B15: 981943OH | C15: Malou Haverkamp | D15: Odivo | E15: B | F15: Schaapskooiruiters, RV. De | H15: 195 | I15: 0 | J15: 195 | K15: 6.5 | L15: 7 | M15: 9 | N15: 9 | O15: 1 | P15: 191 | Q15: 0 | R15: 191 | S15: 6 | T15: 6.5 | U15: 12 | V15: 12 | W15: 1 | X15: 194.5 | Z15: 194.5 | AA15: 6.5 | AB15: 7 | AC15: 3 | AD15: 3 | BC15: 24 | BD15: 580.5 | BE15: =IF($O$4>0,(LARGE(($N15,$V15,$AD15,$AL15,$AT15,$BB15),1)),"0") -> 12 | BG15: 191 | BH15: 0 | BI15: 12 | BJ15: 389.5 | BL15: 2
A16: 8 | B16: 986358OH | C16: Agnes Van Halewijn | D16: Obengel | E16: B | F16: Hulshorst, RV. | H16: 197 | I16: 0 | J16: 197 | K16: 6.5 | L16: 7 | M16: 7 | N16: 7 | O16: 1 | P16: 198.5 | Q16: 0 | R16: 198.5 | S16: 6 | T16: 6.5 | U16: 6 | V16: 6 | W16: 1 | X16: 192.5 | Z16: 192.5 | AA16: 6.5 | AB16: 6.5 | AC16: 6 | AD16: 6 | BC16: 19 | BD16: 588 | BE16: =IF($O$4>0,(LARGE(($N16,$V16,$AD16,$AL16,$AT16,$BB16),1)),"0") -> 7 | BG16: 197 | BH16: 0 | BI16: 12 | BJ16: 391
A17: 9 | B17: 987923MD | C17: Lottah Doornewaard | D17: Miezelma | E17: B | F17: Hippisch Oosterwolde, RV. | H17: 199.5 | I17: 0 | J17: 199.5 | K17: 6.5 | L17: 7.5 | M17: 5 | N17: 5 | O17: 1 | P17: 197.5 | Q17: 0 | R17: 197.5 | S17: 6 | T17: 6.5 | U17: 7 | V17: 7 | W17: 1 | X17: 189.5 | Z17: 189.5 | AA17: 6 | AB17: 6.5 | AC17: 11 | AD17: 11 | BC17: 23 | BD17: 586.5 | BE17: =IF($O$4>0,(LARGE(($N17,$V17,$AD17,$AL17,$AT17,$BB17),1)),"0") -> 11 | BG17: 189.5 | BH17: 0 | BI17: 12 | BJ17: 397
A18: 10 | B18: 926031ET | C18: Irsa van der Tuin | D18: Easter Surprise Z | E18: B | F18: Oost-Veluwse R.J.V., RV. | H18: 188.5 | I18: 0 | J18: 188.5 | K18: 6 | L18: 6.5 | M18: 13 | N18: 13 | O18: 1 | P18: 200 | Q18: 0 | R18: 200 | S18: 6.5 | T18: 6.5 | U18: 5 | V18: 5 | W18: 1 | X18: 177.5 | Z18: 177.5 | AA18: 5.5 | AB18: 6 | AC18: 25 | AD18: 25 | BC18: 43 | BD18: 566 | BE18: =IF($O$4>0,(LARGE(($N18,$V18,$AD18,$AL18,$AT18,$BB18),1)),"0") -> 25 | BG18: 177.5 | BH18: 0 | BI18: 18 | BJ18: 388.5
A19: 11 | B19: 983595AH | C19: Mendya Hoedt | D19: Aphrodite B | E19: B | F19: Bosruiters, RV. De | H19: 197.5 | I19: 0 | J19: 197.5 | K19: 6.5 | L19: 7 | M19: 6 | N19: 6 | O19: 1 | P19: 188.5 | Q19: 0 | R19: 188.5 | S19: 6 | T19: 6 | U19: 16 | V19: 16 | W19: 1 | X19: 186.5 | Z19: 186.5 | AA19: 6 | AB19: 6 | AC19: 14 | AD19: 14 | BC19: 36 | BD19: 572.5 | BE19: =IF($O$4>0,(LARGE(($N19,$V19,$AD19,$AL19,$AT19,$BB19),1)),"0") -> 16 | BG19: 188.5 | BH19: 0 | BI19: 20 | BJ19: 384
A20: 12 | B20: 983390MS | C20: Agnes Scholten | D20: My Melody | E20: B | F20: Heuvelruiters, RV. | H20: 187.5 | I20: 0 | J20: 187.5 | K20: 6 | L20: 6.5 | M20: 14 | N20: 14 | O20: 1 | P20: 192.5 | Q20: 0 | R20: 192.5 | S20: 6.5 | T20: 6.5 | U20: 9 | V20: 9 | W20: 1 | X20: 188 | Z20: 188 | AA20: 6.5 | AB20: 6.5 | AC20: 13 | AD20: 13 | BC20: 36 | BD20: 568 | BE20: =IF($O$4>0,(LARGE(($N20,$V20,$AD20,$AL20,$AT20,$BB20),1)),"0") -> 14 | BG20: 187.5 | BH20: 0 | BI20: 22 | BJ20: 380.5
A21: 13 | B21: 978459NP | C21: Iris Pater | D21: Novelle | E21: B | F21: Marleruiters, RV. | H21: 0 | I21: 0 | J21: 0 | M21: 26 | N21: 90 | O21: 1 | P21: 196.5 | Q21: 0 | R21: 196.5 | S21: 6 | T21: 6.5 | U21: 8 | V21: 8 | W21: 1 | X21: 186 | Z21: 186 | AA21: 6.5 | AB21: 6.5 | AC21: 15 | AD21: 15 | BC21: 113 | BD21: 382.5 | BE21: =IF($O$4>0,(LARGE(($N21,$V21,$AD21,$AL21,$AT21,$BB21),1)),"0") -> 90 | BG21: 0 | BH21: 0 | BI21: 23 | BJ21: 382.5
A22: 14 | B22: 932101GJ | C22: Sandy De Jong - Tichelaar | D22: Ghaira | E22: B | F22: Flevoruiters, RV. | H22: 179 | I22: 0 | J22: 179 | K22: 5.5 | L22: 6 | M22: 24 | N22: 24 | O22: 1 | P22: 171.5 | Q22: 0 | R22: 171.5 | S22: 5 | T22: 5.5 | U22: 22 | V22: 22 | W22: 1 | X22: 178 | Z22: 178 | AA22: 6 | AB22: 6.5 | AC22: 23 | AD22: 2 | BC22: 48 | BD22: 528.5 | BE22: =IF($O$4>0,(LARGE(($N22,$V22,$AD22,$AL22,$AT22,$BB22),1)),"0") -> 24 | BG22: 179 | BH22: 0 | BI22: 24 | BJ22: 349.5
A23: 15 | B23: 965516FA | C23: Quiana Altena | D23: Florida's Flirt | E23: B | F23: Heuvelruiters, RV. | H23: 189 | I23: 0 | J23: 189 | K23: 6 | L23: 6.5 | M23: 11 | N23: 11 | O23: 1 | P23: 189.5 | Q23: 0 | R23: 189.5 | S23: 6 | T23: 6 | U23: 15 | V23: 15 | W23: 1 | X23: 184.5 | Z23: 184.5 | AA23: 6 | AB23: 7 | AC23: 16 | AD23: 16 | BC23: 42 | BD23: 563 | BE23: =IF($O$4>0,(LARGE(($N23,$V23,$AD23,$AL23,$AT23,$BB23),1)),"0") -> 16 | BG23: 184.5 | BH23: 0 | BI23: 26 | BJ23: 378.5
A24: 16 | B24: 991400OB | C24: Javaj Van Bregt | D24: Oo Blacky | E24: B | F24: Heuvelruiters, RV. | H24: 185 | I24: 0 | J24: 185 | K24: 6 | L24: 6.5 | M24: 17 | N24: 17 | O24: 1 | P24: 185.5 | Q24: 0 | R24: 185.5 | S24: 6 | T24: 6 | U24: 17 | V24: 17 | W24: 1 | X24: 189.5 | Z24: 189.5 | AA24: 6 | AB24: 7 | AC24: 10 | AD24: 10 | BC24: 44 | BD24: 560 | BE24: =IF($O$4>0,(LARGE(($N24,$V24,$AD24,$AL24,$AT24,$BB24),1)),"0") -> 17 | BG24: 185 | BH24: 0 | BI24: 27 | BJ24: 375
A25: 17 | B25: 987917NB | C25: Bertina Wajer - Beelen | D25: Nelson B.K. | E25: B | F25: Randmeerruiters, RV. De | H25: 183 | I25: 0 | J25: 183 | K25: 6 | L25: 6 | M25: 21 | N25: 21 | O25: 1 | P25: 192.5 | Q25: 0 | R25: 192.5 | S25: 5.5 | T25: 6.5 | U25: 11 | V25: 11 | W25: 1 | X25: 183 | Z25: 183 | AA25: 6 | AB25: 6.5 | AC25: 18 | AD25: 18 | BC25: 50 | BD25: 558.5 | BE25: =IF($O$4>0,(LARGE(($N25,$V25,$AD25,$AL25,$AT25,$BB25),1)),"0") -> 21 | BG25: 183 | BH25: 0 | BI25: 29 | BJ25: 375.5
A26: 18 | B26: 988758LR | C26: Zara de Ree | D26: Liszt D | E26: B | F26: Heuvelruiters, RV. | H26: 186.5 | I26: 0 | J26: 186.5 | K26: 6 | L26: 6.5 | M26: 15 | N26: 15 | O26: 1 | P26: 190 | Q26: 0 | R26: 190 | S26: 6 | T26: 6.5 | U26: 14 | V26: 14 | Z26: 0 | AD26: 99 | BC26: 128 | BD26: 376.5 | BE26: =IF($O$4>0,(LARGE(($N26,$V26,$AD26,$AL26,$AT26,$BB26),1)),"0") -> 99 | BG26: 0 | BH26: 0 | BI26: 29 | BJ26: 376.5
A27: 19 | B27: 921293JT | C27: Lynn Van Tienderen | D27: Jackie | E27: B | F27: Flevoruiters, RV. | H27: 192 | I27: 0 | J27: 192 | K27: 6.5 | L27: 6.5 | M27: 10 | N27: 10 | O27: 1 | P27: 181.5 | Q27: 0 | R27: 181.5 | S27: 5.5 | T27: 6 | U27: 20 | V27: 20 | W27: 1 | X27: 178.5 | Z27: 178.5 | AA27: 6 | AB27: 6.5 | AC27: 22 | AD27: 22 | BC27: 52 | BD27: 552 | BE27: =IF($O$4>0,(LARGE(($N27,$V27,$AD27,$AL27,$AT27,$BB27),1)),"0") -> 22 | BG27: 178.5 | BH27: 0 | BI27: 30 | BJ27: 373.5
A28: 20 | B28: 992356OB | C28: José Bosman | D28: Obsession Vs | E28: B | F28: Heuvelruiters, RV. | H28: 182 | I28: 0 | J28: 182 | K28: 6 | L28: 6 | M28: 22 | N28: 22 | O28: 1 | P28: 185 | Q28: 0 | R28: 185 | S28: 5 | T28: 6 | U28: 19 | V28: 19 | W28: 1 | X28: 188.5 | Z28: 188.5 | AA28: 6.5 | AB28: 6.5 | AC28: 12 | AD28: 12 | BC28: 53 | BD28: 555.5 | BE28: =IF($O$4>0,(LARGE(($N28,$V28,$AD28,$AL28,$AT28,$BB28),1)),"0") -> 22 | BG28: 182 | BH28: 0 | BI28: 31 | BJ28: 373.5
A29: 21 | B29: 983877LS | C29: Lindsay van de Streek | D29: Let'S Dance | E29: B | F29: Nunspeetse Ruiterclub, RV. | H29: 184 | I29: 0 | J29: 184 | K29: 6 | L29: 6.5 | M29: 19 | N29: 19 | O29: 1 | P29: 185 | Q29: 0 | R29: 185 | S29: 6 | T29: 6 | U29: 18 | V29: 18 | W29: 1 | X29: 180.5 | Z29: 180.5 | AA29: 6 | AB29: 6.5 | AC29: 21 | AD29: 21 | BC29: 58 | BD29: 549.5 | BE29: =IF($O$4>0,(LARGE(($N29,$V29,$AD29,$AL29,$AT29,$BB29),1)),"0") -> 21 | BG29: 180.5 | BH29: 0 | BI29: 37 | BJ29: 369
A30: 22 | B30: 991935KS | C30: Louna Sanderse | D30: Karamella | E30: B | F30: WWNA, RV. | H30: 185.5 | I30: 0 | J30: 185.5 | K30: 6 | L30: 6.5 | M30: 16 | N30: 16 | O30: 1 | P30: 178 | Q30: 0 | R30: 178 | S30: 5 | T30: 6 | U30: 21 | V30: 21 | Z30: 0 | AD30: 99 | BC30: 136 | BD30: 363.5 | BE30: =IF($O$4>0,(LARGE(($N30,$V30,$AD30,$AL30,$AT30,$BB30),1)),"0") -> 99 | BG30: 0 | BH30: 0 | BI30: 37 | BJ30: 363.5
A31: 23 | B31: 992866HV | C31: Amber Vriesema | D31: Havana Hero | E31: B | F31: Nunspeetse Ruiterclub, RV. | J31: 0 | N31: 99 | O31: 1 | P31: 171.5 | Q31: 0 | R31: 171.5 | S31: 5 | T31: 6 | U31: 23 | V31: 23 | Z31: 0 | AD31: 99 | BC31: 221 | BD31: 171.5 | BE31: =IF($O$4>0,(LARGE(($N31,$V31,$AD31,$AL31,$AT31,$BB31),1)),"0") -> 99 | BG31: 0 | BH31: 0 | BI31: 122 | BJ31: 171.5
A32: 24 | B32: 988867JZ | C32: Ingrid Wichers - Zorge | D32: Jersey L | E32: B | F32: Cannenburgh, RV. HV. De | H32: 168 | I32: 0 | J32: 168 | K32: 5 | L32: 5 | M32: 25 | N32: 25 | O32: 1 | P32: 191 | Q32: 0 | R32: 191 | S32: 6 | T32: 6.5 | U32: 12 | V32: 12 | Z32: 0 | AD32: 99 | BC32: 136 | BD32: 359 | BE32: =IF($O$4>0,(LARGE(($N32,$V32,$AD32,$AL32,$AT32,$BB32),1)),"0") -> 99 | BG32: 0 | BH32: 0 | BI32: 37 | BJ32: 359
A33: 25 | B33: 978728DH | C33: Chantalle Halfwerk | D33: Dansa's Onniedan | E33: B | F33: Heuvelruiters, RV. | H33: 206 | I33: 0 | J33: 206 | K33: 6.5 | L33: 7 | M33: 3 | N33: 3 | R33: 0 | V33: 99 | Z33: 0 | AD33: 99 | BC33: 201 | BD33: 206 | BE33: =IF($O$4>0,(LARGE(($N33,$V33,$AD33,$AL33,$AT33,$BB33),1)),"0") -> 99 | BG33: 0 | BH33: 0 | BI33: 102 | BJ33: 206
A34: 26 | B34: 949881MW | C34: Daisy Wagenaar | D34: Marcato | F34: Lelyruiters, RV | J34: 0 | N34: 99 | R34: 0 | V34: 99 | W34: 1 | X34: 191.5 | Z34: 191.5 | AA34: 6.5 | AB34: 7 | AC34: 8 | AD34: 8 | BC34: 206 | BD34: 191.5 | BE34: =IF($O$4>0,(LARGE(($N34,$V34,$AD34,$AL34,$AT34,$BB34),1)),"0") -> 99 | BG34: 0 | BH34: 0 | BI34: 107 | BJ34: 191.5
A35: 27 | B35: 978286ZK | C35: Luna van der Kruk | D35: Zela | F35: Flevoruiters, RV. | J35: 0 | N35: 99 | R35: 0 | V35: 99 | W35: 1 | X35: 190.5 | Z35: 190.5 | AA35: 6.5 | AB35: 6.5 | AC35: 9 | AD35: 9 | BC35: 207 | BD35: 190.5 | BE35: =IF($O$4>0,(LARGE(($N35,$V35,$AD35,$AL35,$AT35,$BB35),1)),"0") -> 99 | BG35: 0 | BH35: 0 | BI35: 108 | BJ35: 190.5
A36: 28 | B36: 957051MO | C36: Marinda Van Omme | D36: My Balou B | E36: B | F36: Hulshorst, RV. | H36: 189 | I36: 0 | J36: 189 | K36: 6 | L36: 6.5 | M36: 11 | N36: 11 | R36: 0 | V36: 99 | Z36: 0 | AD36: 99 | BC36: 209 | BD36: 189 | BE36: =IF($O$4>0,(LARGE(($N36,$V36,$AD36,$AL36,$AT36,$BB36),1)),"0") -> 99 | BG36: 0 | BH36: 0 | BI36: 110 | BJ36: 189
A37: 29 | B37: 888383AD | C37: Carolien van de Bunt - Duijfjes | D37: Siem | F37: Flevoruiters, RV. | J37: 0 | N37: 99 | R37: 0 | V37: 99 | W37: 1 | X37: 184 | Z37: 184 | AA37: 6.5 | AB37: 6.5 | AC37: 17 | AD37: 17 | BC37: 215 | BD37: 184 | BE37: =IF($O$4>0,(LARGE(($N37,$V37,$AD37,$AL37,$AT37,$BB37),1)),"0") -> 99 | BG37: 0 | BH37: 0 | BI37: 116 | BJ37: 184
A38: 30 | B38: 946518BB | C38: Nikki van Bergen | D38: Bau | F38: Flevoruiters, RV. | J38: 0 | N38: 99 | R38: 0 | V38: 99 | W38: 1 | X38: 183 | Z38: 183 | AA38: 6 | AB38: 6.5 | AC38: 18 | AD38: 18 | BC38: 216 | BD38: 183 | BE38: =IF($O$4>0,(LARGE(($N38,$V38,$AD38,$AL38,$AT38,$BB38),1)),"0") -> 99 | BG38: 0 | BH38: 0 | BI38: 117 | BJ38: 183
A39: 31 | B39: 837091KB | C39: Jolijn Boots | D39: Kaya | F39: Flevoruiters, RV. | J39: 0 | N39: 99 | R39: 0 | V39: 99 | W39: 1 | X39: 181.5 | Z39: 181.5 | AA39: 6 | AB39: 6.5 | AC39: 20 | AD39: 20 | BC39: 218 | BD39: 181.5 | BE39: =IF($O$4>0,(LARGE(($N39,$V39,$AD39,$AL39,$AT39,$BB39),1)),"0") -> 99 | BG39: 0 | BH39: 0 | BI39: 119 | BJ39: 181.5
A40: 32 | B40: 967855NV | C40: Imke Vredenberg | D40: Nimarilla | E40: B | F40: Oost-Veluwse R.J.V., RV. | H40: 183.5 | I40: 0 | J40: 183.5 | K40: 6.5 | L40: 6.5 | M40: 20 | N40: 20 | R40: 0 | V40: 99 | Z40: 0 | AD40: 99 | BC40: 218 | BD40: 183.5 | BE40: =IF($O$4>0,(LARGE(($N40,$V40,$AD40,$AL40,$AT40,$BB40),1)),"0") -> 99 | BG40: 0 | BH40: 0 | BI40: 119 | BJ40: 183.5
A41: 33 | B41: 984074PB | C41: Emma Bremer | D41: Uno Momento | E41: B | F41: Flevoruiters, RV. | H41: 181.5 | I41: 0 | J41: 181.5 | K41: 5.5 | L41: 6 | M41: 23 | N41: 23 | R41: 0 | V41: 99 | Z41: 0 | AD41: 99 | BC41: 221 | BD41: 181.5 | BE41: =IF($O$4>0,(LARGE(($N41,$V41,$AD41,$AL41,$AT41,$BB41),1)),"0") -> 99 | BG41: 0 | BH41: 0 | BI41: 122 | BJ41: 181.5
A42: 34 | B42: 992866HV | C42: Amber Vriesema | D42: Havana Hero | F42: Nunspeetse Ruiterclub, RV. | J42: 0 | N42: 99 | R42: 0 | V42: 99 | W42: 1 | X42: 178 | Z42: 178 | AA42: 5 | AB42: 6.5 | AC42: 24 | AD42: 24 | BC42: 222 | BD42: 178 | BE42: =IF($O$4>0,(LARGE(($N42,$V42,$AD42,$AL42,$AT42,$BB42),1)),"0") -> 99 | BG42: 0 | BH42: 0 | BI42: 123 | BJ42: 178
A43: 35 | B43: 953386SS | C43: Andrys Stienstra | D43: Super Sonnic | F43: Flevoruiters, RV. | J43: 0 | N43: 99 | R43: 0 | V43: 99 | W43: 1 | X43: 173 | Z43: 173 | AA43: 6 | AB43: 6.5 | AC43: 26 | AD43: 26 | BC43: 224 | BD43: 173 | BE43: =IF($O$4>0,(LARGE(($N43,$V43,$AD43,$AL43,$AT43,$BB43),1)),"0") -> 99 | BG43: 0 | BH43: 0 | BI43: 125 | BJ43: 173
A44: 36 | B44: 992644ZK | C44: Felice de Klerk | D44: Ziteldo | E44: B | F44: Randmeerruiters, RV. De | H44: 0 | I44: 0 | J44: 0 | M44: 26 | N44: 90 | R44: 0 | V44: 99 | Z44: 0 | AD44: 99 | BC44: 288 | BD44: 0 | BE44: =IF($O$4>0,(LARGE(($N44,$V44,$AD44,$AL44,$AT44,$BB44),1)),"0") -> 99 | BG44: 0 | BH44: 0 | BI44: 189 | BJ44: 0
A45: 36 | B45: 984469ME | C45: Jose Van Egteren | D45: Mata Hari D | E45: B | F45: Cannenburgh, RV. HV. De | H45: 0 | I45: 0 | J45: 0 | M45: 26 | N45: 90 | R45: 0 | V45: 99 | Z45: 0 | AD45: 99 | BC45: 288 | BD45: 0 | BE45: =IF($O$4>0,(LARGE(($N45,$V45,$AD45,$AL45,$AT45,$BB45),1)),"0") -> 99 | BG45: 0 | BH45: 0 | BI45: 189 | BJ45: 0

Sheet L1
A1: Selectie uitslagen
C2: 1 | D2: =FLOOR((C2+3)/4,1) -> 1 | H2: 192 | I2: 190 | J2: =H2+I2 -> 382 | N2: 1 | P2: 193 | Q2: 193 | R2: =P2+Q2 -> 386 | V2: 2 | X2: 198 | Y2: 198 | Z2: =X2+Y2 -> 396 | AD2: 3 | AF2: 177 | AG2: 177 | AH2: =AF2+AG2 -> 354 | AL2: 4 | AN2: 178 | AO2: 178 | AP2: =AN2+AO2 -> 356 | AT2: 5 | AV2: 179 | AW2: 179 | AX2: =AV2+AW2 -> 358 | BB2: 6 | BC2: =N2+V2+AD2+AL2+AT2+BB2 -> 21 | BD2: =J2+R2+Z2+AH2+AP2+AX2 -> 2232 | BE2: =IF($O$4>0,(LARGE(($N2,$V2,$AD2,$AL2,$AT2,$BB2),1)),"0") -> 6 | BF2: =IF($O$4>0,(LARGE(($N2,$V2,$AD2,$AL2,$AT2,$BB2),2)),"0") -> 5 | BG2: 354 | BH2: 354 | BI2: =BC2-BE2-BF2 -> 10 | BJ2: =BD2-BG2-BH2 -> 1524
A3: Kring: | C3: =[1]Instellingen!B3 -> Kring NVF | F3: Aantal afvaardiging Regio: | O3: 5 | BC3: Aantal wedstrijden: | BL3: =[1]Instellingen!B6 -> 3
A4: Klasse: | C4: L1 | F4: Aantal afval resultaten: | O4: =[1]Instellingen!B7 -> 1
A5: Cat.: | F5: Plaatsingspunten niet gestart: | O5: =[1]Instellingen!B5 -> 99 | BC5: Aantal reserves: | BL5: 2
F6: Lokatie: | G6: =[1]Instellingen!B36 -> Hulshorst_Nunspeet | O6: =[1]Instellingen!B37 -> Vaassen_Wezep | W6: =[1]Instellingen!B38 -> Dronten_Hierden | AE6: =[1]Instellingen!B39 -> 0 | AM6: =[1]Instellingen!B40 -> 0 | AU6: =[1]Instellingen!B41 -> 0 | BC6: Dressuur | BI6: Pnt. 60% regel | BL6: 180
F7: Datum: | G7: =[1]Instellingen!C36 -> 03_04 nov 2023 | O7: =[1]Instellingen!C37 -> 01_02 dec 2023 | W7: =[1]Instellingen!C38 -> 08_09_15_16 dec 2023 | AE7: =[1]Instellingen!C39 ->  | AM7: =[1]Instellingen!C40 ->  | AU7: =[1]Instellingen!C41 ->  | BC7: Tot. | BD7: Tot. | BE7: afval | BF7: afval | BG7: afval | BH7: afval | BI7: Beste | BJ7: Beste
A8: Pl. | B8: Comb.nr. | C8: Ruiter/amazone | D8: Paard/pony | E8: kl. | F8: vereniging | G8: Ring | H8: pnt.C | I8: pnt.H | J8: pnt.tot | K8: ex 1 | L8: ex 2 | M8: pl. | N8: pl.p. | O8: Ring | P8: pnt.C | Q8: pnt.H | R8: pnt.tot. | S8: ex 1 | T8: ex 2 | U8: pl. | V8: pl.p. | W8: Ring | X8: pnt.C | Y8: pnt. H | Z8: pnt.tot. | AA8: ex 1 | AB8: ex 2 | AC8: pl. | AD8: pl.p. | AE8: Ring | AF8: pnt.C | AG8: pnt.H | AH8: pnt.tot. | AI8: ex 1 | AJ8: ex 2 | AK8: pl. | AL8: pl.p. | AM8: Ring | AN8: pnt.C | AO8: pnt.H | AP8: pnt.tot. | AQ8: ex 1 | AR8: ex 2 | AS8: pl. | AT8: pl.p. | AU8: Ring | AV8: pnt.C | AW8: pnt.H | AX8: pnt.tot. | AY8: ex 1 | AZ8: ex 2 | BA8: pl. | BB8: pl.p. | BC8: pl.pnt | BD8: punten | BE8: pl.pnt | BF8: pl.pnt | BG8: punten | BH8: punten | BI8: pl.pnt | BJ8: punten | BK8: Afv. | BL8: Res. | BM8: Afv. Regio | BN8: opmerking
A9: 1 | B9: 972943OS | C9: Laura Spronk | D9: Olympia Ds | E9: L1 | F9: Heuvelruiters, RV. | J9: =H9+I9 -> 0 | N9: 99 | O9: 1 | P9: 226 | Q9: 0 | R9: =P9+Q9 -> 226 | S9: 8 | T9: 8.5 | U9: 1 | V9: 1 | W9: 1 | X9: 221.5 | Z9: =X9+Y9 -> 221.5 | AA9: 7.5 | AB9: 8 | AC9: 1 | AD9: 1 | BC9: =N9+V9+AD9+AL9+AT9+BB9 -> 101 | BD9: =J9+R9+Z9+AH9+AP9+AX9 -> 447.5 | BE9: =IF($O$4>0,(LARGE(($N9,$V9,$AD9,$AL9,$AT9,$BB9),1)),"0") -> 99 | BG9: 0 | BH9: 0 | BI9: =BC9-BE9-BF9 -> 2 | BJ9: =BD9-BG9-BH9 -> 447.5 | BK9: 1 | BN9: Kringkampioen
A10: 2 | B10: 987599OB | C10: Wendy Uijt de Boogaardt | D10: Ojay | E10: L1 | F10: Hippisch Oosterwolde, RV. | G10: 1 | H10: 208 | I10: 0 | J10: 208 | K10: 7 | L10: 7 | M10: 1 | N10: 1 | O10: 1 | P10: 211 | Q10: 0 | R10: 211 | S10: 7 | T10: 7 | U10: 3 | V10: 3 | Z10: 0 | AD10: 99 | BC10: 103 | BD10: 419 | BE10: =IF($O$4>0,(LARGE(($N10,$V10,$AD10,$AL10,$AT10,$BB10),1)),"0") -> 99 | BG10: 0 | BH10: 0 | BI10: 4 | BJ10: 419 | BK10: 2
A11: 3 | B11: 984186OS | C11: Laura Spronk | D11: Orlando Ds | E11: L1 | F11: Heuvelruiters, RV. | G11: 1 | H11: 184.5 | I11: 0 | J11: 184.5 | K11: 6 | L11: 6.5 | M11: 8 | N11: 8 | O11: 1 | P11: 213.5 | Q11: 0 | R11: 213.5 | S11: 7.5 | T11: 7 | U11: 2 | V11: 2 | W11: 1 | X11: 206.5 | Z11: 206.5 | AA11: 7 | AB11: 7 | AC11: 3 | AD11: 3 | BC11: 13 | BD11: 604.5 | BE11: =IF($O$4>0,(LARGE(($N11,$V11,$AD11,$AL11,$AT11,$BB11),1)),"0") -> 8 | BG11: 184.5 | BH11: 0 | BI11: 5 | BJ11: 420 | BK11: 3
A12: 4 | B12: 979731MG | C12: Elise Geschiere | D12: Mon Toto DC | E12: L1 | F12: Flevoruiters, RV. | G12: 2 | H12: 183.5 | I12: 0 | J12: 183.5 | K12: 6 | L12: 6.5 | M12: 7 | N12: 7 | O12: 1 | P12: 205.5 | Q12: 0 | R12: 205.5 | S12: 7 | T12: 7.5 | U12: 5 | V12: 5 | W12: 1 | X12: 208.5 | Z12: 208.5 | AA12: 7 | AB12: 7 | AC12: 2 | AD12: 2 | BC12: 14 | BD12: 597.5 | BE12: =IF($O$4>0,(LARGE(($N12,$V12,$AD12,$AL12,$AT12,$BB12),1)),"0") -> 7 | BG12: 183.5 | BH12: 0 | BI12: 7 | BJ12: 414 | BK12: 4
A13: 5 | B13: 972741OH | C13: Liesbeth Hop | D13: Oscar GW | E13: L1 | F13: Randmeerruiters, RV. De | G13: 1 | H13: 203 | I13: 0 | J13: 203 | K13: 7 | L13: 7.5 | M13: 2 | N13: 2 | O13: 1 | P13: 195.5 | Q13: 0 | R13: 195.5 | S13: 6 | T13: 6.5 | U13: 15 | V13: 15 | W13: 1 | X13: 203.5 | Z13: 203.5 | AA13: 7 | AB13: 7 | AC13: 5 | AD13: 5 | BC13: 22 | BD13: 602 | BE13: =IF($O$4>0,(LARGE(($N13,$V13,$AD13,$AL13,$AT13,$BB13),1)),"0") -> 15 | BG13: 195.5 | BH13: 0 | BI13: 7 | BJ13: 406.5 | BK13: 5
A14: 6 | B14: 973703NB | C14: Willeke Den Besten | D14: Nathalie DB | E14: L1 | F14: Noord Veluwe, RV. PSV | G14: 2 | H14: 202.5 | I14: 0 | J14: 202.5 | K14: 7 | L14: 7 | M14: 1 | N14: 1 | O14: 1 | P14: 198.5 | Q14: 0 | R14: 198.5 | S14: 6.5 | T14: 7 | U14: 9 | V14: 9 | W14: 1 | X14: 200.5 | Z14: 200.5 | AA14: 7 | AB14: 7 | AC14: 6 | AD14: 6 | BC14: 16 | BD14: 601.5 | BE14: =IF($O$4>0,(LARGE(($N14,$V14,$AD14,$AL14,$AT14,$BB14),1)),"0") -> 9 | BG14: 198.5 | BH14: 0 | BI14: 7 | BJ14: 403 | BL14: 1
A15: 7 | B15: 945906ML | C15: Anouk Linthorst | D15: Macho DS | E15: L1 | F15: WWNA, RV. | G15: 2 | H15: 197 | I15: 0 | J15: 197 | K15: 7 | L15: 7 | M15: 2 | N15: 2 | O15: 1 | P15: 204.5 | Q15: 0 | R15: 204.5 | S15: 7 | T15: 7 | U15: 6 | V15: 6 | W15: 1 | X15: 185 | Z15: 185 | AA15: 6.5 | AB15: 6.5 | AC15: 14 | AD15: 14 | BC15: 22 | BD15: 586.5 | BE15: =IF($O$4>0,(LARGE(($N15,$V15,$AD15,$AL15,$AT15,$BB15),1)),"0") -> 14 | BG15: 185 | BH15: 0 | BI15: 8 | BJ15: 401.5 | BL15: 2
A16: 8 | B16: 953332MT | C16: Rosalie Tessemaker | D16: Mighty Mike | E16: L1 | F16: Horsthoekruiters, RV. | G16: 1 | H16: 191 | I16: 0 | J16: 191 | K16: 6 | L16: 6.5 | M16: 6 | N16: 6 | O16: 1 | P16: 198.5 | Q16: 0 | R16: 198.5 | S16: 6.5 | T16: 7 | U16: 9 | V16: 9 | W16: 1 | X16: 205 | Z16: 205 | AA16: 6.5 | AB16: 7 | AC16: 4 | AD16: 4 | BC16: 19 | BD16: 594.5 | BE16: =IF($O$4>0,(LARGE(($N16,$V16,$AD16,$AL16,$AT16,$BB16),1)),"0") -> 9 | BG16: 198.5 | BH16: 0 | BI16: 10 | BJ16: 396
A17: 9 | B17: 973547OK | C17: Lisa Kleijer | D17: Othello | E17: L1 | F17: Nunspeetse Ruiterclub, RV. | J17: 0 | N17: 99 | O17: 1 | P17: 209 | Q17: 0 | R17: 209 | S17: 7 | T17: 7.5 | U17: 4 | V17: 4 | W17: 1 | X17: 198.5 | Z17: 198.5 | AA17: 7 | AB17: 7 | AC17: 7 | AD17: 7 | BC17: 110 | BD17: 407.5 | BE17: =IF($O$4>0,(LARGE(($N17,$V17,$AD17,$AL17,$AT17,$BB17),1)),"0") -> 99 | BG17: 0 | BH17: 0 | BI17: 11 | BJ17: 407.5
A18: 10 | B18: 875464MS | C18: Lotte de Smet | D18: Mary's Ann | E18: L1 | F18: Nunspeetse Ruiterclub, RV. | G18: 1 | H18: 193 | I18: 0 | J18: 193 | K18: 7 | L18: 7.5 | M18: 4 | N18: 4 | O18: 1 | P18: 200.5 | Q18: 0 | R18: 200.5 | S18: 6.5 | T18: 7.5 | U18: 7 | V18: 7 | W18: 1 | X18: 189 | Z18: 189 | AA18: 6.5 | AB18: 6.5 | AC18: 10 | AD18: 10 | BC18: 21 | BD18: 582.5 | BE18: =IF($O$4>0,(LARGE(($N18,$V18,$AD18,$AL18,$AT18,$BB18),1)),"0") -> 10 | BG18: 189 | BH18: 0 | BI18: 11 | BJ18: 393.5
A19: 11 | B19: 971388ND | C19: Liset Dezijn | D19: Nice Surprise | E19: L1 | F19: Horsthoekruiters, RV. | G19: 2 | H19: 195.5 | I19: 0 | J19: 195.5 | K19: 6.5 | L19: 7 | M19: 3 | N19: 3 | O19: 1 | P19: 199 | Q19: 0 | R19: 199 | S19: 6.5 | T19: 7 | U19: 8 | V19: 8 | W19: 1 | X19: 177.5 | Z19: 177.5 | AA19: 5.5 | AB19: 6 | AC19: 21 | AD19: 21 | BC19: 32 | BD19: 572 | BE19: =IF($O$4>0,(LARGE(($N19,$V19,$AD19,$AL19,$AT19,$BB19),1)),"0") -> 21 | BG19: 177.5 | BH19: 0 | BI19: 11 | BJ19: 394.5
A20: 12 | B20: 856202JW | C20: Irene van Straten - Waterweg | D20: Joepie Van Landlust | E20: L1 | F20: Nunspeetse Ruiterclub, RV. | G20: 2 | H20: 189.5 | I20: 0 | J20: 189.5 | K20: 6 | L20: 6.5 | M20: 4 | N20: 4 | O20: 1 | P20: 190.5 | Q20: 0 | R20: 190.5 | S20: 5 | T20: 7 | U20: 22 | V20: 22 | W20: 1 | X20: 193.5 | Z20: 193.5 | AA20: 6.5 | AB20: 6.5 | AC20: 8 | AD20: 8 | BC20: 34 | BD20: 573.5 | BE20: =IF($O$4>0,(LARGE(($N20,$V20,$AD20,$AL20,$AT20,$BB20),1)),"0") -> 22 | BG20: 190.5 | BH20: 0 | BI20: 12 | BJ20: 383
A21: 13 | B21: 983868LD | C21: Reina Van Duinen | D21: Lexus | E21: L1 | F21: Randmeerruiters, RV. De | G21: 1 | H21: 194 | I21: 0 | J21: 194 | K21: 7 | L21: 7 | M21: 3 | N21: 3 | R21: 0 | V21: 99 | W21: 1 | X21: 187.5 | Z21: 187.5 | AA21: 6 | AB21: 6.5 | AC21: 11 | AD21: 11 | BC21: 113 | BD21: 381.5 | BE21: =IF($O$4>0,(LARGE(($N21,$V21,$AD21,$AL21,$AT21,$BB21),1)),"0") -> 99 | BG21: 0 | BH21: 0 | BI21: 14 | BJ21: 381.5
A22: 14 | B22: 973753TB | C22: Diane Beelen | D22: Totalis | E22: L1 | F22: Randmeerruiters, RV. De | G22: 2 | H22: 189 | I22: 0 | J22: 189 | K22: 6.5 | L22: 6.5 | M22: 5 | N22: 5 | O22: 1 | P22: 197.5 | Q22: 0 | R22: 197.5 | S22: 6.5 | T22: 7 | U22: 12 | V22: 12 | W22: 1 | X22: 181.5 | Z22: 181.5 | AA22: 5.5 | AB22: 6 | AC22: 20 | AD22: 20 | BC22: 37 | BD22: 568 | BE22: =IF($O$4>0,(LARGE(($N22,$V22,$AD22,$AL22,$AT22,$BB22),1)),"0") -> 20 | BG22: 181.5 | BH22: 0 | BI22: 17 | BJ22: 386.5
A23: 15 | B23: 991559NF | C23: Gabrielle Faber | D23: Navy-Star | E23: L1 | F23: Schaapskooiruiters, RV. De | J23: 0 | N23: 99 | O23: 1 | P23: 196 | Q23: 0 | R23: 196 | S23: 7 | T23: 7 | U23: 14 | V23: 14 | W23: 1 | X23: 191 | Z23: 191 | AA23: 6 | AB23: 6.5 | AC23: 9 | AD23: 9 | BC23: 122 | BD23: 387 | BE23: =IF($O$4>0,(LARGE(($N23,$V23,$AD23,$AL23,$AT23,$BB23),1)),"0") -> 99 | BG23: 0 | BH23: 0 | BI23: 23 | BJ23: 387
A24: 16 | B24: 925110BR | C24: Jo-ann Rosner | D24: Beukenoord's Bonjour | E24: L1 | F24: Nunspeetse Ruiterclub, RV. | J24: 0 | N24: 99 | O24: 1 | P24: 195.5 | Q24: 0 | R24: 195.5 | S24: 6 | T24: 7 | U24: 16 | V24: 16 | Z24: 0 | AC24: 16 | AD24: 16 | BC24: 131 | BD24: 195.5 | BE24: =IF($O$4>0,(LARGE(($N24,$V24,$AD24,$AL24,$AT24,$BB24),1)),"0") -> 99 | BG24: 0 | BH24: 0 | BI24: 32 | BJ24: 195.5
A25: 17 | B25: 963007DH | C25: Marije Huiskamp | D25: Dansa's Osadansa | E25: L1 | F25: Cannenburgh, RV. HV. De | G25: 1 | H25: 175.5 | I25: 0 | J25: 175.5 | K25: 6 | L25: 6.5 | M25: 12 | N25: 12 | O25: 1 | P25: 198.5 | Q25: 0 | R25: 198.5 | S25: 6 | T25: 6.5 | U25: 11 | V25: 11 | W25: 1 | X25: 181.5 | Z25: 181.5 | AA25: 6 | AB25: 6.5 | AC25: 19 | AD25: 19 | BC25: 42 | BD25: 555.5 | BE25: =IF($O$4>0,(LARGE(($N25,$V25,$AD25,$AL25,$AT25,$BB25),1)),"0") -> 19 | BG25: 181.5 | BH25: 0 | BI25: 23 | BJ25: 374
A26: 18 | B26: 954818LB | C26: Daisy Bosse | D26: Lewis | E26: L1 | F26: Noord Veluwe, RV. PSV | G26: 2 | H26: 185.5 | I26: 0 | J26: 185.5 | K26: 6.5 | L26: 6.5 | M26: 6 | N26: 6 | O26: 1 | P26: 194 | Q26: 0 | R26: 194 | S26: 6 | T26: 7 | U26: 18 | V26: 18 | W26: 1 | X26: 183 | Z26: 183 | AA26: 6 | AB26: 6.5 | AC26: 18 | AD26: 18 | BC26: 42 | BD26: 562.5 | BE26: =IF($O$4>0,(LARGE(($N26,$V26,$AD26,$AL26,$AT26,$BB26),1)),"0") -> 18 | BG26: 183 | BH26: 0 | BI26: 24 | BJ26: 379.5
A27: 19 | B27: 988369OH | C27: Tamara Van 't Hof | D27: Olaf | E27: L1 | F27: Randmeerruiters, RV. De | G27: 1 | H27: 186.5 | I27: 0 | J27: 186.5 | K27: 6.5 | L27: 6.5 | M27: 7 | N27: 7 | O27: 1 | P27: 194.5 | Q27: 0 | R27: 194.5 | S27: 6.5 | T27: 7 | U27: 17 | V27: 17 | W27: 1 | X27: 175 | Z27: 175 | AA27: 5 | AB27: 6 | AC27: 24 | AD27: 24 | BC27: 48 | BD27: 556 | BE27: =IF($O$4>0,(LARGE(($N27,$V27,$AD27,$AL27,$AT27,$BB27),1)),"0") -> 24 | BG27: 175 | BH27: 0 | BI27: 24 | BJ27: 381
A28: 20 | B28: 866080IA | C28: Danielle Akster | D28: Idolieni | E28: L1 | F28: Nunspeetse Ruiterclub, RV. | J28: 0 | N28: 99 | O28: 1 | P28: 196.5 | Q28: 0 | R28: 196.5 | S28: 6.5 | T28: 7 | U28: 13 | V28: 13 | W28: 1 | X28: 186 | Z28: 186 | AA28: 6 | AB28: 6 | AC28: 13 | AD28: 13 | BC28: 125 | BD28: 382.5 | BE28: =IF($O$4>0,(LARGE(($N28,$V28,$AD28,$AL28,$AT28,$BB28),1)),"0") -> 99 | BG28: 0 | BH28: 0 | BI28: 26 | BJ28: 382.5
A29: 21 | B29: 963463OH | C29: Malou Haverkamp | D29: Onita | E29: L1 | F29: Schaapskooiruiters, RV. De | G29: 1 | H29: 176.5 | I29: 0 | J29: 176.5 | K29: 6 | L29: 6.5 | M29: 11 | N29: 11 | O29: 1 | P29: 187 | Q29: 0 | R29: 187 | S29: 6.5 | T29: 6.5 | U29: 24 | V29: 24 | W29: 1 | X29: 185 | Z29: 185 | AA29: 6 | AB29: 6 | AC29: 15 | AD29: 15 | BC29: 50 | BD29: 548.5 | BE29: =IF($O$4>0,(LARGE(($N29,$V29,$AD29,$AL29,$AT29,$BB29),1)),"0") -> 24 | BG29: 187 | BH29: 0 | BI29: 26 | BJ29: 361.5
A30: 22 | B30: 960030CO | C30: Demi van 't Oever | D30: Ostergårdens Chiko | E30: L1 | F30: Stal Rodeo, RV. RSV. | G30: 1 | H30: 184 | I30: 0 | J30: 184 | K30: 6.5 | L30: 6.5 | M30: 9 | N30: 9 | O30: 1 | P30: 192.5 | Q30: 0 | R30: 192.5 | S30: 6 | T30: 7 | U30: 19 | V30: 19 | W30: 1 | X30: 175.5 | Z30: 175.5 | AA30: 5.5 | AB30: 6 | AC30: 22 | AD30: 22 | BC30: 50 | BD30: 552 | BE30: =IF($O$4>0,(LARGE(($N30,$V30,$AD30,$AL30,$AT30,$BB30),1)),"0") -> 22 | BG30: 175.5 | BH30: 0 | BI30: 28 | BJ30: 376.5
A31: 23 | B31: 953277UQ | C31: Eline Quik | D31: Uncle Bob | E31: L1 | F31: Hulshorst, RV. | G31: 1 | H31: 177 | I31: 0 | J31: 177 | K31: 6 | L31: 6.5 | M31: 10 | N31: 10 | O31: 1 | P31: 190 | Q31: 0 | R31: 190 | S31: 6.5 | T31: 7 | U31: 23 | V31: 23 | Z31: 0 | AD31: 99 | BC31: 132 | BD31: 367 | BE31: =IF($O$4>0,(LARGE(($N31,$V31,$AD31,$AL31,$AT31,$BB31),1)),"0") -> 99 | BG31: 0 | BH31: 0 | BI31: 33 | BJ31: 367
A32: 24 | B32: 985112OK | C32: Pascalle De Klerk | D32: Ocean Pk | E32: L1 | F32: Cannenburgh, RV. HV. De | G32: 1 | H32: 164 | I32: 0 | J32: 164 | K32: 5 | L32: 5 | M32: 16 | N32: 16 | O32: 1 | P32: 191.5 | Q32: 0 | R32: 191.5 | S32: 5 | T32: 7 | U32: 20 | V32: 20 | W32: 1 | X32: 174.5 | Z32: 174.5 | AA32: 5.5 | AB32: 6 | AC32: 25 | AD32: 25 | BC32: 61 | BD32: 530 | BE32: =IF($O$4>0,(LARGE(($N32,$V32,$AD32,$AL32,$AT32,$BB32),1)),"0") -> 25 | BG32: 174.5 | BH32: 0 | BI32: 36 | BJ32: 355.5
A33: 25 | B33: 976291FG | C33: Marlou Grovenstein | D33: Fantastico | E33: L1 | F33: Flevoruiters, RV. | G33: 2 | H33: 173 | I33: 0 | J33: 173 | K33: 5 | L33: 6 | M33: 12 | N33: 12 | O33: 1 | P33: 181 | Q33: 0 | R33: 181 | S33: 6.5 | T33: 6.5 | U33: 27 | V33: 27 | W33: 1 | X33: 168 | Z33: 168 | AA33: 5 | AB33: 6 | AC33: 28 | AD33: 28 | BC33: 67 | BD33: 522 | BE33: =IF($O$4>0,(LARGE(($N33,$V33,$AD33,$AL33,$AT33,$BB33),1)),"0") -> 28 | BG33: 168 | BH33: 0 | BI33: 39 | BJ33: 354
A34: 26 | B34: 967312MF | C34: Paula Farke | D34: Mister M&M Jr. | E34: L1 | F34: Flevoruiters, RV. | G34: 1 | H34: 165.5 | I34: 0 | J34: 165.5 | K34: 6 | L34: 6 | M34: 15 | N34: 15 | O34: 1 | P34: 182 | Q34: 0 | R34: 182 | S34: 6.5 | T34: 7 | U34: 25 | V34: 25 | W34: 1 | X34: 172 | Z34: 172 | AA34: 5.5 | AB34: 6 | AC34: 26 | AD34: 26 | BC34: 66 | BD34: 519.5 | BE34: =IF($O$4>0,(LARGE(($N34,$V34,$AD34,$AL34,$AT34,$BB34),1)),"0") -> 26 | BG34: 172 | BH34: 0 | BI34: 40 | BJ34: 347.5
A35: 27 | B35: 977559MB | C35: Nele Beck | D35: Miss Sunshine | E35: L1 | F35: Flevoruiters, RV. | J35: 0 | N35: 99 | O35: 1 | P35: 179.5 | Q35: 0 | R35: 179.5 | S35: 5 | T35: 6 | U35: 29 | V35: 29 | W35: 1 | X35: 186 | Z35: 186 | AA35: 6 | AB35: 6.5 | AC35: 12 | AD35: 12 | BC35: 140 | BD35: 365.5 | BE35: =IF($O$4>0,(LARGE(($N35,$V35,$AD35,$AL35,$AT35,$BB35),1)),"0") -> 99 | BG35: 0 | BH35: 0 | BI35: 41 | BJ35: 365.5
A36: 28 | B36: 943753GD | C36: Jacqueline Van Drunen | D36: Gurbe van de Randmeerhoeve | E36: L1 | F36: Hulshorst, RV. | G36: 1 | H36: 192.5 | I36: 0 | J36: 192.5 | K36: 6.5 | L36: 6.5 | M36: 5 | N36: 5 | R36: 0 | V36: 99 | Z36: 0 | AD36: 99 | BC36: 203 | BD36: 192.5 | BE36: =IF($O$4>0,(LARGE(($N36,$V36,$AD36,$AL36,$AT36,$BB36),1)),"0") -> 99 | BG36: 0 | BH36: 0 | BI36: 104 | BJ36: 192.5
A37: 29 | B37: 978257AL | C37: Ellen Lambers | D37: Argona II | E37: L1 | F37: Cannenburgh, RV. HV. De | G37: 2 | H37: 181.5 | I37: 0 | J37: 181.5 | K37: 6 | L37: 6.5 | M37: 8 | N37: 8 | R37: 0 | V37: 99 | Z37: 0 | AD37: 99 | BC37: 206 | BD37: 181.5 | BE37: =IF($O$4>0,(LARGE(($N37,$V37,$AD37,$AL37,$AT37,$BB37),1)),"0") -> 99 | BG37: 0 | BH37: 0 | BI37: 107 | BJ37: 181.5
A38: 30 | B38: 962358IH | C38: Nienke Hagen | D38: Ivion Van Heemstate | E38: L1 | F38: Cannenburgh, PSC. De | G38: 1 | H38: 162 | I38: 0 | J38: 162 | K38: 5 | L38: 5.5 | M38: 17 | N38: 17 | O38: 1 | P38: 0 | Q38: 0 | R38: 0 | U38: 30 | V38: 90 | Z38: 0 | AD38: 99 | BC38: 206 | BD38: 162 | BE38: =IF($O$4>0,(LARGE(($N38,$V38,$AD38,$AL38,$AT38,$BB38),1)),"0") -> 99 | BG38: 0 | BH38: 0 | BI38: 107 | BJ38: 162
A39: 31 | B39: 882046CV | C39: Savannah Veldman | D39: Campsterhoven's Vicharo | E39: L1 | F39: Nunspeetse Ruiterclub, RV. | G39: 2 | H39: 181 | I39: 0 | J39: 181 | K39: 6 | L39: 6.5 | M39: 9 | N39: 9 | R39: 0 | V39: 99 | Z39: 0 | AD39: 99 | BC39: 207 | BD39: 181 | BE39: =IF($O$4>0,(LARGE(($N39,$V39,$AD39,$AL39,$AT39,$BB39),1)),"0") -> 99 | BG39: 0 | BH39: 0 | BI39: 108 | BJ39: 181
A40: 32 | B40: 987690FF | C40: Anne Faber | D40: FHS Friso T | E40: L1 | F40: Hulshorst, RV. | G40: 2 | H40: 175 | I40: 0 | J40: 175 | K40: 6 | L40: 6 | M40: 10 | N40: 10 | R40: 0 | V40: 99 | Z40: 0 | AD40: 99 | BC40: 208 | BD40: 175 | BE40: =IF($O$4>0,(LARGE(($N40,$V40,$AD40,$AL40,$AT40,$BB40),1)),"0") -> 99 | BG40: 0 | BH40: 0 | BI40: 109 | BJ40: 175
A41: 33 | B41: 848631HB | C41: Tanja Boeve | D41: Haisha | E41: L1 | F41: Epe, RV. HV. | G41: 2 | H41: 174.5 | I41: 0 | J41: 174.5 | K41: 5 | L41: 6.5 | M41: 11 | N41: 11 | R41: 0 | V41: 99 | Z41: 0 | AD41: 99 | BC41: 209 | BD41: 174.5 | BE41: =IF($O$4>0,(LARGE(($N41,$V41,$AD41,$AL41,$AT41,$BB41),1)),"0") -> 99 | BG41: 0 | BH41: 0 | BI41: 110 | BJ41: 174.5
A42: 34 | B42: 958614NO | C42: Jolien Van Omme | D42: Naughty Boy of Invictus | E42: L1 | F42: Hulshorst, RV. | G42: 1 | H42: 175 | I42: 0 | J42: 175 | K42: 5.5 | L42: 6.5 | M42: 13 | N42: 13 | R42: 0 | V42: 99 | Z42: 0 | AD42: 99 | BC42: 211 | BD42: 175 | BE42: =IF($O$4>0,(LARGE(($N42,$V42,$AD42,$AL42,$AT42,$BB42),1)),"0") -> 99 | BG42: 0 | BH42: 0 | BI42: 112 | BJ42: 175
A43: 35 | B43: 962655NB | C43: Naomi Bosmans | D43: Navarro | E43: L1 | F43: Nunspeetse Ruiterclub, RV. | G43: 1 | H43: 173.5 | I43: 0 | J43: 173.5 | K43: 6 | L43: 6 | M43: 14 | N43: 14 | R43: 0 | V43: 99 | Z43: 0 | AD43: 99 | BC43: 212 | BD43: 173.5 | BE43: =IF($O$4>0,(LARGE(($N43,$V43,$AD43,$AL43,$AT43,$BB43),1)),"0") -> 99 | BG43: 0 | BH43: 0 | BI43: 113 | BJ43: 173.5
A44: 36 | B44: 925110BR | C44: Jo -anne Rosner | D44: Beukenoord's Bonjour | F44: Nunspeetse Ruiterclub, RV. | J44: 0 | N44: 99 | R44: 0 | V44: 99 | W44: 1 | X44: 183.5 | Z44: 183.5 | AA44: 6 | AB44: 6 | AC44: 17 | AD44: 17 | BC44: 215 | BD44: 183.5 | BE44: =IF($O$4>0,(LARGE(($N44,$V44,$AD44,$AL44,$AT44,$BB44),1)),"0") -> 99 | BG44: 0 | BH44: 0 | BI44: 116 | BJ44: 183.5
A45: 37 | B45: 941389CN | C45: Eipie Nagelhout | D45: Cinora | E45: L1 | F45: Heuvelruiters, RV. | G45: 2 | H45: 0 | I45: 0 | J45: 0 | M45: 13 | N45: 90 | O45: 1 | P45: 182 | Q45: 0 | R45: 182 | S45: 5 | T45: 6.5 | U45: 26 | V45: 26 | Z45: 0 | AD45: 99 | BC45: 215 | BD45: 182 | BE45: =IF($O$4>0,(LARGE(($N45,$V45,$AD45,$AL45,$AT45,$BB45),1)),"0") -> 99 | BG45: 0 | BH45: 0 | BI45: 116 | BJ45: 182
A46: 38 | B46: 969657GM | C46: Jorja Mensink | D46: Guus Geluk | E46: L1 | F46: WWNA, RV. | J46: 0 | N46: 99 | O46: 1 | P46: 190.5 | Q46: 0 | R46: 190.5 | S46: 6.5 | T46: 7 | U46: 21 | V46: 21 | Z46: 0 | AD46: 99 | BC46: 219 | BD46: 190.5 | BE46: =IF($O$4>0,(LARGE(($N46,$V46,$AD46,$AL46,$AT46,$BB46),1)),"0") -> 99 | BG46: 0 | BH46: 0 | BI46: 120 | BJ46: 190.5
A47: 39 | B47: 873890DB | C47: Mikki Boas | D47: Dairo | F47: Flevoruiters, RV. | J47: 0 | N47: 99 | R47: 0 | V47: 99 | W47: 1 | X47: 175.5 | Z47: 175.5 | AA47: 5 | AB47: 5.5 | AC47: 23 | AD47: 23 | BC47: 221 | BD47: 175.5 | BE47: =IF($O$4>0,(LARGE(($N47,$V47,$AD47,$AL47,$AT47,$BB47),1)),"0") -> 99 | BG47: 0 | BH47: 0 | BI47: 122 | BJ47: 175.5
A48: 40 | B48: 974755SH | C48: Fleur van Haagen | D48: Sterrelijn vd Bentinckhoeve | F48: Flevoruiters, RV. | J48: 0 | N48: 99 | R48: 0 | V48: 99 | W48: 1 | X48: 171 | Z48: 171 | AA48: 6 | AB48: 6 | AC48: 27 | AD48: 27 | BC48: 225 | BD48: 171 | BE48: =IF($O$4>0,(LARGE(($N48,$V48,$AD48,$AL48,$AT48,$BB48),1)),"0") -> 99 | BG48: 0 | BH48: 0 | BI48: 126 | BJ48: 171
A49: 41 | B49: 986704NB | C49: Noa Van Beek | D49: Nouveau - Mere Dcs | E49: L1 | F49: Heuvelruiters, RV. | J49: 0 | N49: 99 | O49: 1 | P49: 181 | Q49: 0 | R49: 181 | S49: 5.5 | T49: 6 | U49: 28 | V49: 28 | Z49: 0 | AD49: 99 | BC49: 226 | BD49: 181 | BE49: =IF($O$4>0,(LARGE(($N49,$V49,$AD49,$AL49,$AT49,$BB49),1)),"0") -> 99 | BG49: 0 | BH49: 0 | BI49: 127 | BJ49: 181

Sheet L2
A1: Selectie uitslagen
C2: 1 | D2: =FLOOR((C2+3)/4,1) -> 1 | H2: 192 | I2: 190 | J2: =H2+I2 -> 382 | N2: 1 | P2: 193 | Q2: 193 | R2: =P2+Q2 -> 386 | V2: 2 | X2: 198 | Y2: 198 | Z2: =X2+Y2 -> 396 | AD2: 3 | AF2: 177 | AG2: 177 | AH2: =AF2+AG2 -> 354 | AL2: 4 | AN2: 178 | AO2: 178 | AP2: =AN2+AO2 -> 356 | AT2: 5 | AV2: 179 | AW2: 179 | AX2: =AV2+AW2 -> 358 | BB2: 6 | BC2: =N2+V2+AD2+AL2+AT2+BB2 -> 21 | BD2: =J2+R2+Z2+AH2+AP2+AX2 -> 2232 | BE2: =IF($O$4>0,(LARGE(($N2,$V2,$AD2,$AL2,$AT2,$BB2),1)),"0") -> 6 | BF2: =IF($O$4>0,(LARGE(($N2,$V2,$AD2,$AL2,$AT2,$BB2),2)),"0") -> 5 | BG2: 354 | BH2: 354 | BI2: =BC2-BE2-BF2 -> 10 | BJ2: =BD2-BG2-BH2 -> 1524
A3: Kring: | C3: =[1]Instellingen!B3 -> Kring NVF | F3: Aantal afvaardiging Regio: | O3: 4 | BC3: Aantal wedstrijden: | BL3: =[1]Instellingen!B6 -> 3
A4: Klasse: | C4: L2 | F4: Aantal afval resultaten: | O4: =[1]Instellingen!B7 -> 1
A5: Cat.: | F5: Plaatsingspunten niet gestart: | O5: =[1]Instellingen!B5 -> 99 | BC5: Aantal reserves: | BL5: 2
F6: Lokatie: | G6: =[1]Instellingen!B36 -> Hulshorst_Nunspeet | O6: =[1]Instellingen!B37 -> Vaassen_Wezep | W6: =[1]Instellingen!B38 -> Dronten_Hierden | AE6: =[1]Instellingen!B39 -> 0 | AM6: =[1]Instellingen!B40 -> 0 | AU6: =[1]Instellingen!B41 -> 0 | BC6: Dressuur | BI6: Pnt. 60% regel | BL6: 180
F7: Datum: | G7: =[1]Instellingen!C36 -> 03_04 nov 2023 | O7: =[1]Instellingen!C37 -> 01_02 dec 2023 | W7: =[1]Instellingen!C38 -> 08_09_15_16 dec 2023 | AE7: =[1]Instellingen!C39 ->  | AM7: =[1]Instellingen!C40 ->  | AU7: =[1]Instellingen!C41 ->  | BC7: Tot. | BD7: Tot. | BE7: afval | BF7: afval | BG7: afval | BH7: afval | BI7: Beste | BJ7: Beste
A8: Pl. | B8: Comb.nr. | C8: Ruiter/amazone | D8: Paard/pony | E8: kl. | F8: vereniging | G8: Ring | H8: pnt.C | I8: pnt.H | J8: pnt.tot | K8: ex 1 | L8: ex 2 | M8: pl. | N8: pl.p. | O8: Ring | P8: pnt.C | Q8: pnt.H | R8: pnt.tot. | S8: ex 1 | T8: ex 2 | U8: pl. | V8: pl.p. | W8: Ring | X8: pnt.C | Y8: pnt. H | Z8: pnt.tot. | AA8: ex 1 | AB8: ex 2 | AC8: pl. | AD8: pl.p. | AE8: Ring | AF8: pnt.C | AG8: pnt.H | AH8: pnt.tot. | AI8: ex 1 | AJ8: ex 2 | AK8: pl. | AL8: pl.p. | AM8: Ring | AN8: pnt.C | AO8: pnt.H | AP8: pnt.tot. | AQ8: ex 1 | AR8: ex 2 | AS8: pl. | AT8: pl.p. | AU8: Ring | AV8: pnt.C | AW8: pnt.H | AX8: pnt.tot. | AY8: ex 1 | AZ8: ex 2 | BA8: pl. | BB8: pl.p. | BC8: pl.pnt | BD8: punten | BE8: pl.pnt | BF8: pl.pnt | BG8: punten | BH8: punten | BI8: pl.pnt | BJ8: punten | BK8: Afv. | BL8: Res. | BM8: Afv. Regio | BN8: opmerking
A9: 1 | B9: 946858NS | C9: Laura Spronk | D9: New Star | E9: L2 | F9: Heuvelruiters, RV. | G9: 2 | H9: 207.5 | I9: 0 | J9: =H9+I9 -> 207.5 | K9: 7 | L9: 7 | M9: 1 | N9: 1 | O9: 1 | P9: 209 | Q9: 0 | R9: =P9+Q9 -> 209 | S9: 7.5 | T9: 8 | U9: 3 | V9: 3 | W9: 1 | X9: 236.5 | Z9: =X9+Y9 -> 236.5 | AA9: 8 | AB9: 8.5 | AC9: 1 | AD9: 1 | BC9: =N9+V9+AD9+AL9+AT9+BB9 -> 5 | BD9: =J9+R9+Z9+AH9+AP9+AX9 -> 653 | BE9: =IF($O$4>0,(LARGE(($N9,$V9,$AD9,$AL9,$AT9,$BB9),1)),"0") -> 3 | BG9: 209 | BH9: 0 | BI9: =BC9-BE9-BF9 -> 2 | BJ9: =BD9-BG9-BH9 -> 444 | BK9: 1 | BN9: Kringkampioen
A10: 2 | B10: 992809NS | C10: Romy Schaftenaar | D10: NOU NOU | E10: L2 | F10: Schaapskooiruiters, RV. De | G10: 2 | H10: 202 | I10: 0 | J10: 202 | K10: 7 | L10: 7 | M10: 3 | N10: 3 | O10: 1 | P10: 199.5 | Q10: 0 | R10: 199.5 | S10: 7 | T10: 7 | U10: 9 | V10: 9 | W10: 1 | X10: 212.5 | Z10: 212.5 | AA10: 7.5 | AB10: 7.5 | AC10: 2 | AD10: 2 | BC10: 14 | BD10: 614 | BE10: =IF($O$4>0,(LARGE(($N10,$V10,$AD10,$AL10,$AT10,$BB10),1)),"0") -> 9 | BG10: 199.5 | BH10: 0 | BI10: 5 | BJ10: 414.5 | BK10: 2
A11: 3 | B11: 984443NV | C11: Diana Vinke | D11: Navaro | E11: L2 | F11: Nunspeetse Ruiterclub, RV. | G11: 2 | H11: 203 | I11: 0 | J11: 203 | K11: 6.5 | L11: 6.5 | M11: 2 | N11: 2 | O11: 1 | P11: 204 | Q11: 0 | R11: 204 | S11: 6.5 | T11: 7 | U11: 7 | V11: 7 | W11: 1 | X11: 212 | Z11: 212 | AA11: 7 | AB11: 7.5 | AC11: 3 | AD11: 3 | BC11: 12 | BD11: 619 | BE11: =IF($O$4>0,(LARGE(($N11,$V11,$AD11,$AL11,$AT11,$BB11),1)),"0") -> 7 | BG11: 204 | BH11: 0 | BI11: 5 | BJ11: 415 | BK11: 3
A12: 4 | B12: 959838NR | C12: Satu Pleijter - Rahikka | D12: Nicolai | E12: L2 | F12: Noord Veluwe, RV. PSV | G12: 2 | H12: 199 | I12: 0 | J12: 199 | K12: 6 | L12: 6.5 | M12: 4 | N12: 4 | O12: 1 | P12: 212 | Q12: 0 | R12: 212 | S12: 8 | T12: 8 | U12: 1 | V12: 1 | W12: 1 | X12: 202.5 | Z12: 202.5 | AA12: 6.5 | AB12: 7 | AC12: 8 | AD12: 8 | BC12: 13 | BD12: 613.5 | BE12: =IF($O$4>0,(LARGE(($N12,$V12,$AD12,$AL12,$AT12,$BB12),1)),"0") -> 8 | BG12: 202.5 | BH12: 0 | BI12: 5 | BJ12: 411 | BK12: 4
A13: 5 | B13: 971842NV | C13: Arnoud Te Velde | D13: Noud FZ | E13: L2 | F13: Oost-Veluwse R.J.V., RV. | G13: 2 | H13: 192.5 | I13: 0 | J13: 192.5 | K13: 6 | L13: 6.5 | M13: 7 | N13: 7 | O13: 1 | P13: 210 | Q13: 0 | R13: 210 | S13: 8 | T13: 8 | U13: 2 | V13: 2 | Z13: 0 | AD13: 99 | BC13: 108 | BD13: 402.5 | BE13: =IF($O$4>0,(LARGE(($N13,$V13,$AD13,$AL13,$AT13,$BB13),1)),"0") -> 99 | BG13: 0 | BH13: 0 | BI13: 9 | BJ13: 402.5 | BL13: 1
A14: 6 | B14: 972903OG | C14: Stefanie De Groot | D14: Odile | E14: L2 | F14: Heuvelruiters, RV. | G14: 2 | H14: 182 | I14: 0 | J14: 182 | K14: 5 | L14: 6 | M14: 14 | N14: 14 | O14: 1 | P14: 204 | Q14: 0 | R14: 204 | S14: 7.5 | T14: 8 | U14: 6 | V14: 6 | W14: 1 | X14: 205 | Z14: 205 | AA14: 7 | AB14: 7.5 | AC14: 6 | AD14: 6 | BC14: 26 | BD14: 591 | BE14: =IF($O$4>0,(LARGE(($N14,$V14,$AD14,$AL14,$AT14,$BB14),1)),"0") -> 14 | BG14: 182 | BH14: 0 | BI14: 12 | BJ14: 409 | BL14: 2
A15: 7 | B15: 992732DS | C15: Romy Schaftenaar | D15: Don Valiente | E15: L2 | F15: Schaapskooiruiters, RV. De | G15: 2 | H15: 0 | I15: 0 | J15: 0 | M15: 21 | N15: 90 | O15: 1 | P15: 204.5 | Q15: 0 | R15: 204.5 | S15: 7.5 | T15: 8 | U15: 5 | V15: 5 | W15: 1 | X15: 204 | Z15: 204 | AA15: 7 | AB15: 7.5 | AC15: 7 | AD15: 7 | BC15: 102 | BD15: 408.5 | BE15: =IF($O$4>0,(LARGE(($N15,$V15,$AD15,$AL15,$AT15,$BB15),1)),"0") -> 90 | BG15: 0 | BH15: 0 | BI15: 12 | BJ15: 408.5
A16: 8 | B16: 992369ZN | C16: Emma Nieuwenhuis | D16: Zilfire K | E16: L2 | F16: WWNA, RV. | G16: 2 | H16: 192 | I16: 0 | J16: 192 | K16: 6 | L16: 6.5 | M16: 8 | N16: 8 | O16: 1 | P16: 168 | Q16: 0 | R16: 168 | S16: 5.5 | T16: 6 | U16: 21 | V16: 21 | W16: 1 | X16: 207.5 | Z16: 207.5 | AA16: 7 | AB16: 7.5 | AC16: 5 | AD16: 5 | BC16: 34 | BD16: 567.5 | BE16: =IF($O$4>0,(LARGE(($N16,$V16,$AD16,$AL16,$AT16,$BB16),1)),"0") -> 21 | BG16: 168 | BH16: 0 | BI16: 13 | BJ16: 399.5
A17: 9 | B17: 971400LD | C17: Steane Dijkslag | D17: Lurzelma | E17: L2 | F17: Schaapskooiruiters, RV. De | G17: 2 | H17: 194.5 | I17: 0 | J17: 194.5 | K17: 6 | L17: 6.5 | M17: 6 | N17: 6 | O17: 1 | P17: 201.5 | Q17: 0 | R17: 201.5 | S17: 7 | T17: 7 | U17: 8 | V17: 8 | W17: 1 | X17: 198.5 | Z17: 198.5 | AA17: 6.5 | AB17: 7 | AC17: 10 | AD17: 10 | BC17: 24 | BD17: 594.5 | BE17: =IF($O$4>0,(LARGE(($N17,$V17,$AD17,$AL17,$AT17,$BB17),1)),"0") -> 10 | BG17: 198.5 | BH17: 0 | BI17: 14 | BJ17: 396
A18: 10 | B18: 976686OS | C18: Romy Schaftenaar | D18: On Fire | E18: L2 | F18: Schaapskooiruiters, RV. De | J18: 0 | N18: 99 | O18: 1 | P18: 206 | Q18: 0 | R18: 206 | S18: 8 | T18: 8 | U18: 4 | V18: 4 | W18: 1 | X18: 192.5 | Z18: 192.5 | AA18: 6 | AB18: 6.5 | AC18: 12 | AD18: 12 | BC18: 115 | BD18: 398.5 | BE18: =IF($O$4>0,(LARGE(($N18,$V18,$AD18,$AL18,$AT18,$BB18),1)),"0") -> 99 | BG18: 0 | BH18: 0 | BI18: 16 | BJ18: 398.5
A19: 11 | B19: 991991CW | C19: Jan pieter Weenink | D19: Customzadels Okeechobee | E19: L2 | F19: Heuvelruiters, RV. | G19: 2 | H19: 196 | I19: 0 | J19: 196 | K19: 6.5 | L19: 6.5 | M19: 5 | N19: 5 | O19: 1 | P19: 189 | Q19: 0 | R19: 189 | S19: 7 | T19: 7 | U19: 11 | V19: 11 | W19: 1 | X19: 192 | Z19: 192 | AA19: 6 | AB19: 6.5 | AC19: 14 | AD19: 14 | BC19: 30 | BD19: 577 | BE19: =IF($O$4>0,(LARGE(($N19,$V19,$AD19,$AL19,$AT19,$BB19),1)),"0") -> 14 | BG19: 192 | BH19: 0 | BI19: 16 | BJ19: 385
A20: 12 | B20: 968564NS | C20: Ilona Moeken - Souman | D20: Nairobi C | E20: L2 | F20: Heuvelruiters, RV. | G20: 2 | H20: 184 | I20: 0 | J20: 184 | K20: 5.5 | L20: 6 | M20: 13 | N20: 13 | O20: 1 | P20: 184 | Q20: 0 | R20: 184 | S20: 5.5 | T20: 6.5 | U20: 15 | V20: 15 | W20: 1 | X20: 208.5 | Z20: 208.5 | AA20: 7 | AB20: 7 | AC20: 4 | AD20: 4 | BC20: 32 | BD20: 576.5 | BE20: =IF($O$4>0,(LARGE(($N20,$V20,$AD20,$AL20,$AT20,$BB20),1)),"0") -> 15 | BG20: 184 | BH20: 0 | BI20: 17 | BJ20: 392.5
A21: 13 | B21: 904370LP | C21: Petrice Polinder | D21: Leon | E21: L2 | F21: Nunspeetse Ruiterclub, RV. | G21: 2 | H21: 181.5 | I21: 0 | J21: 181.5 | K21: 6 | L21: 6 | M21: 15 | N21: 15 | O21: 1 | P21: 192.5 | Q21: 0 | R21: 192.5 | S21: 6 | T21: 7 | U21: 10 | V21: 10 | W21: 1 | X21: 201.5 | Z21: 201.5 | AA21: 6.5 | AB21: 7 | AC21: 9 | AD21: 9 | BC21: 34 | BD21: 575.5 | BE21: =IF($O$4>0,(LARGE(($N21,$V21,$AD21,$AL21,$AT21,$BB21),1)),"0") -> 15 | BG21: 181.5 | BH21: 0 | BI21: 19 | BJ21: 394
A22: 14 | B22: 941663MB | C22: Nicole Broekhuis | D22: Manet D' Orlandaise | E22: L2 | F22: Cannenburgh, RV. HV. De | G22: 2 | H22: 189.5 | I22: 0 | J22: 189.5 | K22: 6 | L22: 6 | M22: 9 | N22: 9 | O22: 1 | P22: 186.5 | Q22: 0 | R22: 186.5 | S22: 6 | T22: 6.5 | U22: 14 | V22: 14 | W22: 1 | X22: 195.5 | Z22: 195.5 | AA22: 6.5 | AB22: 6.5 | AC22: 11 | AD22: 11 | BC22: 34 | BD22: 571.5 | BE22: =IF($O$4>0,(LARGE(($N22,$V22,$AD22,$AL22,$AT22,$BB22),1)),"0") -> 14 | BG22: 186.5 | BH22: 0 | BI22: 20 | BJ22: 385
A23: 15 | B23: 963547MD | C23: Elisa Driehuis | D23: Miss Magic | E23: L2 | F23: WWNA, RV. | G23: 2 | H23: 189.5 | I23: 0 | J23: 189.5 | K23: 6 | L23: 6 | M23: 9 | N23: 9 | O23: 1 | P23: 187 | Q23: 0 | R23: 187 | S23: 6 | T23: 6.5 | U23: 12 | V23: 12 | Z23: 0 | AD23: 99 | BC23: 120 | BD23: 376.5 | BE23: =IF($O$4>0,(LARGE(($N23,$V23,$AD23,$AL23,$AT23,$BB23),1)),"0") -> 99 | BG23: 0 | BH23: 0 | BI23: 21 | BJ23: 376.5
A24: 16 | B24: 946962NF | C24: Gabrielle Faber | D24: Noblesse | E24: L2 | F24: Schaapskooiruiters, RV. De | G24: 2 | H24: 187.5 | I24: 0 | J24: 187.5 | K24: 6 | L24: 6 | M24: 11 | N24: 11 | O24: 1 | P24: 187 | Q24: 0 | R24: 187 | S24: 6 | T24: 6 | U24: 13 | V24: 13 | Z24: 0 | AD24: 99 | BC24: 123 | BD24: 374.5 | BE24: =IF($O$4>0,(LARGE(($N24,$V24,$AD24,$AL24,$AT24,$BB24),1)),"0") -> 99 | BG24: 0 | BH24: 0 | BI24: 24 | BJ24: 374.5
A25: 17 | B25: 954321NL | C25: Geke Lokhorst | D25: Nova Nazu M. | E25: L2 | F25: Noord Veluwe, RV. PSV | G25: 2 | H25: 181.5 | I25: 0 | J25: 181.5 | K25: 6 | L25: 6 | M25: 15 | N25: 15 | O25: 1 | P25: 181.5 | Q25: 0 | R25: 181.5 | S25: 6.5 | T25: 6.5 | U25: 16 | V25: 16 | Z25: 0 | AD25: 99 | BC25: 130 | BD25: 363 | BE25: =IF($O$4>0,(LARGE(($N25,$V25,$AD25,$AL25,$AT25,$BB25),1)),"0") -> 99 | BG25: 0 | BH25: 0 | BI25: 31 | BJ25: 363
A26: 18 | B26: 866179KB | C26: Annelise Boeve | D26: King Kenzo | E26: L2 | F26: Heuvelruiters, RV. | G26: 2 | H26: 186.5 | I26: 0 | J26: 186.5 | K26: 6 | L26: 6 | M26: 12 | N26: 12 | O26: 1 | P26: 170.5 | Q26: 0 | R26: 170.5 | S26: 6 | T26: 6 | U26: 20 | V26: 20 | Z26: 0 | AD26: 99 | BC26: 131 | BD26: 357 | BE26: =IF($O$4>0,(LARGE(($N26,$V26,$AD26,$AL26,$AT26,$BB26),1)),"0") -> 99 | BG26: 0 | BH26: 0 | BI26: 32 | BJ26: 357
A27: 19 | B27: 924486AI | C27: Amber Van Ittersum | D27: Adolf | E27: L2 | F27: Marleruiters, RV. | G27: 2 | H27: 177 | I27: 0 | J27: 177 | K27: 5.5 | L27: 6 | M27: 18 | N27: 18 | O27: 1 | P27: 172 | Q27: 0 | R27: 172 | S27: 6 | T27: 6 | U27: 19 | V27: 19 | Z27: 0 | AD27: 99 | BC27: 136 | BD27: 349 | BE27: =IF($O$4>0,(LARGE(($N27,$V27,$AD27,$AL27,$AT27,$BB27),1)),"0") -> 99 | BG27: 0 | BH27: 0 | BI27: 37 | BJ27: 349
A28: 20 | B28: 732804EI | C28: Lisanne Van Ittersum | D28: Ezra Joline | E28: L2 | F28: Marleruiters, RV. | G28: 2 | H28: 175.5 | I28: 0 | J28: 175.5 | K28: 5.5 | L28: 6 | M28: 20 | N28: 20 | O28: 1 | P28: 175 | Q28: 0 | R28: 175 | S28: 5.5 | T28: 6 | U28: 18 | V28: 18 | Z28: 0 | AD28: 99 | BC28: 137 | BD28: 350.5 | BE28: =IF($O$4>0,(LARGE(($N28,$V28,$AD28,$AL28,$AT28,$BB28),1)),"0") -> 99 | BG28: 0 | BH28: 0 | BI28: 38 | BJ28: 350.5
A29: 21 | B29: 918384EF | C29: Rosa Foppen | D29: Elena | F29: Flevoruiters, RV. | J29: 0 | N29: 99 | R29: 0 | V29: 99 | W29: 1 | X29: 192 | Z29: 192 | AA29: 6.5 | AB29: 7 | AC29: 13 | AD29: 13 | BC29: 211 | BD29: 192 | BE29: =IF($O$4>0,(LARGE(($N29,$V29,$AD29,$AL29,$AT29,$BB29),1)),"0") -> 99 | BG29: 0 | BH29: 0 | BI29: 112 | BJ29: 192
A30: 22 | B30: 918384EF | C30: Rosa Foppen | D30: Elena | E30: L2 | F30: Flevoruiters, RV. | J30: 0 | N30: 99 | O30: 1 | P30: 167 | Q30: 0 | R30: 167 | S30: 5.5 | T30: 6 | U30: 22 | V30: 22 | Z30: 0 | AD30: 99 | BC30: 220 | BD30: 167 | BE30: =IF($O$4>0,(LARGE(($N30,$V30,$AD30,$AL30,$AT30,$BB30),1)),"0") -> 99 | BG30: 0 | BH30: 0 | BI30: 121 | BJ30: 167
A31: 23 | B31: 954482DK | C31: Suzanne Kroese | D31: Dilana | E31: L2 | F31: Noord Veluwe, RV. PSV | G31: 2 | H31: 179.5 | I31: 0 | J31: 179.5 | K31: 6 | L31: 6 | M31: 17 | N31: 17 | R31: 0 | V31: 99 | Z31: 0 | AD31: 99 | BC31: 215 | BD31: 179.5 | BE31: =IF($O$4>0,(LARGE(($N31,$V31,$AD31,$AL31,$AT31,$BB31),1)),"0") -> 99 | BG31: 0 | BH31: 0 | BI31: 116 | BJ31: 179.5
A32: 24 | B32: 900939WA | C32: Desiree Agterhuis | D32: Wilana | E32: L2 | F32: Marleruiters, RV. | J32: 0 | N32: 99 | O32: 1 | P32: 177 | Q32: 0 | R32: 177 | S32: 5 | T32: 6 | U32: 17 | V32: 17 | Z32: 0 | AD32: 99 | BC32: 215 | BD32: 177 | BE32: =IF($O$4>0,(LARGE(($N32,$V32,$AD32,$AL32,$AT32,$BB32),1)),"0") -> 99 | BG32: 0 | BH32: 0 | BI32: 116 | BJ32: 177
A33: 25 | B33: 935871FH | C33: Tamara Ten Hove | D33: First Lady | E33: L2 | F33: Oost-Veluwse R.J.V., RV. | G33: 2 | H33: 176.5 | I33: 0 | J33: 176.5 | K33: 5 | L33: 6 | M33: 19 | N33: 19 | R33: 0 | V33: 99 | Z33: 0 | AD33: 99 | BC33: 217 | BD33: 176.5 | BE33: =IF($O$4>0,(LARGE(($N33,$V33,$AD33,$AL33,$AT33,$BB33),1)),"0") -> 99 | BG33: 0 | BH33: 0 | BI33: 118 | BJ33: 176.5

Sheet M1
A1: Selectie uitslagen
C2: 1 | D2: =FLOOR((C2+3)/4,1) -> 1 | H2: 192 | I2: 190 | J2: =H2+I2 -> 382 | N2: 1 | P2: 193 | Q2: 193 | R2: =P2+Q2 -> 386 | V2: 2 | X2: 198 | Y2: 198 | Z2: =X2+Y2 -> 396 | AD2: 3 | AF2: 177 | AG2: 177 | AH2: =AF2+AG2 -> 354 | AL2: 4 | AN2: 178 | AO2: 178 | AP2: =AN2+AO2 -> 356 | AT2: 5 | AV2: 179 | AW2: 179 | AX2: =AV2+AW2 -> 358 | BB2: 6 | BC2: =N2+V2+AD2+AL2+AT2+BB2 -> 21 | BD2: =J2+R2+Z2+AH2+AP2+AX2 -> 2232 | BE2: =IF($O$4>0,(LARGE(($N2,$V2,$AD2,$AL2,$AT2,$BB2),1)),"0") -> 6 | BF2: =IF($O$4>0,(LARGE(($N2,$V2,$AD2,$AL2,$AT2,$BB2),2)),"0") -> 5 | BG2: 354 | BH2: 354 | BI2: =BC2-BE2-BF2 -> 10 | BJ2: =BD2-BG2-BH2 -> 1524
A3: Kring: | C3: =Instellingen!B3 -> Kring NVF | F3: Aantal afvaardiging Regio: | O3: 3 | BC3: Aantal wedstrijden: | BL3: =Instellingen!B6 -> 3
A4: Klasse: | C4: M1 | F4: Aantal afval resultaten: | O4: =Instellingen!B7 -> 1
A5: Cat.: | F5: Plaatsingspunten niet gestart: | O5: =Instellingen!B5 -> 99 | BC5: Aantal reserves: | BL5: 2
F6: Lokatie: | G6: =Instellingen!B36 -> Hulshorst_Nunspeet | O6: =Instellingen!B37 -> Vaassen_Wezep | W6: =Instellingen!B38 -> Dronten_Hierden | AE6: =Instellingen!B39 -> 0 | AM6: =Instellingen!B40 -> 0 | AU6: =Instellingen!B41 -> 0 | BC6: Dressuur | BI6: Pnt. 60% regel | BL6: 180
F7: Datum: | G7: =Instellingen!C36 -> 03_04 nov 2023 | O7: =Instellingen!C37 -> 01_02 dec 2023 | W7: =Instellingen!C38 -> 08_09_15_16 dec 2023 | AE7: =Instellingen!C39 ->  | AM7: =Instellingen!C40 ->  | AU7: =Instellingen!C41 ->  | BC7: Tot. | BD7: Tot. | BE7: afval | BF7: afval | BG7: afval | BH7: afval | BI7: Beste | BJ7: Beste
A8: Pl. | B8: Comb.nr. | C8: Ruiter/amazone | D8: Paard/pony | E8: kl. | F8: vereniging | G8: Ring | H8: pnt.C | I8: pnt.H | J8: pnt.tot | K8: ex 1 | L8: ex 2 | M8: pl. | N8: pl.p. | O8: Ring | P8: pnt.C | Q8: pnt.H | R8: pnt.tot. | S8: ex 1 | T8: ex 2 | U8: pl. | V8: pl.p. | W8: Ring | X8: pnt.C | Y8: pnt. H | Z8: pnt.tot. | AA8: ex 1 | AB8: ex 2 | AC8: pl. | AD8: pl.p. | AE8: Ring | AF8: pnt.C | AG8: pnt.H | AH8: pnt.tot. | AI8: ex 1 | AJ8: ex 2 | AK8: pl. | AL8: pl.p. | AM8: Ring | AN8: pnt.C | AO8: pnt.H | AP8: pnt.tot. | AQ8: ex 1 | AR8: ex 2 | AS8: pl. | AT8: pl.p. | AU8: Ring | AV8: pnt.C | AW8: pnt.H | AX8: pnt.tot. | AY8: ex 1 | AZ8: ex 2 | BA8: pl. | BB8: pl.p. | BC8: pl.pnt | BD8: punten | BE8: pl.pnt | BF8: pl.pnt | BG8: punten | BH8: punten | BI8: pl.pnt | BJ8: punten | BK8: Afv. | BL8: Res. | BM8: Afv. Regio | BN8: opmerking
A9: 1 | B9: 990847NV | C9: Carlijn Vaessen | D9: Nexter Carlos O | E9: M1 | F9: Heuvelruiters, RV. | H9: 211.5 | I9: 0 | J9: =H9+I9 -> 211.5 | K9: 7 | L9: 7 | M9: 2 | N9: 2 | P9: 227 | Q9: 0 | R9: =P9+Q9 -> 227 | S9: 8 | T9: 8.5 | U9: 1 | V9: 1 | W9: 1 | X9: 207 | Z9: =X9+Y9 -> 207 | AA9: 7 | AB9: 7 | AC9: 1 | AD9: 1 | BC9: =N9+V9+AD9+AL9+AT9+BB9 -> 4 | BD9: =J9+R9+Z9+AH9+AP9+AX9 -> 645.5 | BE9: =IF($O$4>0,(LARGE(($N9,$V9,$AD9,$AL9,$AT9,$BB9),1)),"0") -> 2 | BG9: 211.5 | BH9: 0 | BI9: =BC9-BE9-BF9 -> 2 | BJ9: =BD9-BG9-BH9 -> 434 | BK9: 1 | BN9: Kringkampioen
A10: 2 | B10: 986959NP | C10: Kimberly Pap | D10: Nyatrichta | E10: M1 | F10: Nunspeetse Ruiterclub, RV. | H10: 214.5 | I10: 0 | J10: 214.5 | K10: 7 | L10: 7.5 | M10: 1 | N10: 1 | R10: 0 | V10: 99 | W10: 1 | X10: 207 | Z10: 207 | AA10: 7 | AB10: 7 | AC10: 1 | AD10: 1 | BC10: 101 | BD10: 421.5 | BE10: =IF($O$4>0,(LARGE(($N10,$V10,$AD10,$AL10,$AT10,$BB10),1)),"0") -> 99 | BG10: 0 | BH10: 0 | BI10: 2 | BJ10: 421.5 | BM10: nee | BN10: lichte tour
A11: 3 | B11: 978454CP | C11: Kimberly Pap | D11: Custom Zadels Nespresso | E11: M1 | F11: Nunspeetse Ruiterclub, RV. | H11: 206.5 | I11: 0 | J11: 206.5 | K11: 6.5 | L11: 7 | M11: 3 | N11: 3 | R11: 0 | V11: 99 | W11: 1 | X11: 206 | Z11: 206 | AA11: 7 | AB11: 7 | AC11: 3 | AD11: 3 | BC11: 105 | BD11: 412.5 | BE11: =IF($O$4>0,(LARGE(($N11,$V11,$AD11,$AL11,$AT11,$BB11),1)),"0") -> 99 | BG11: 0 | BH11: 0 | BI11: 6 | BJ11: 412.5 | BM11: nee | BN11: lichte tour
A12: 4 | B12: 991317FV | C12: Diana Vinke | D12: Kimberly | E12: M1 | F12: Nunspeetse Ruiterclub, RV. | H12: 206.5 | I12: 0 | J12: 206.5 | K12: 6.5 | L12: 7 | M12: 3 | N12: 3 | P12: 201.5 | Q12: 0 | R12: 201.5 | S12: 7 | T12: 7 | U12: 3 | V12: 3 | Z12: 0 | AD12: 99 | BC12: 105 | BD12: 408 | BE12: =IF($O$4>0,(LARGE(($N12,$V12,$AD12,$AL12,$AT12,$BB12),1)),"0") -> 99 | BG12: 0 | BH12: 0 | BI12: 6 | BJ12: 408 | BK12: 2
A13: 5 | B13: 970931NU | C13: Marieta Doornwaard - Uitslag | D13: Nadiesch | E13: M1 | F13: Heuvelruiters, RV. | H13: 200.5 | I13: 0 | J13: 200.5 | K13: 6.5 | L13: 7 | M13: 5 | N13: 5 | P13: 195.5 | Q13: 0 | R13: 195.5 | S13: 6.5 | T13: 6.5 | U13: 4 | V13: 4 | W13: 1 | X13: 203 | Z13: 203 | AA13: 7 | AB13: 7 | AC13: 4 | AD13: 4 | BC13: 13 | BD13: 599 | BE13: =IF($O$4>0,(LARGE(($N13,$V13,$AD13,$AL13,$AT13,$BB13),1)),"0") -> 5 | BG13: 200.5 | BH13: 0 | BI13: 8 | BJ13: 398.5 | BK13: 3
A14: 6 | B14: 928668MB | C14: Dianne Den Besten | D14: Michigan DB | E14: M1 | F14: Noord Veluwe, RV. PSV | H14: 194 | I14: 0 | J14: 194 | K14: 6.5 | L14: 6.5 | M14: 8 | N14: 8 | P14: 202 | Q14: 0 | R14: 202 | S14: 7 | T14: 7 | U14: 2 | V14: 2 | W14: 1 | X14: 195 | Z14: 195 | AA14: 7 | AB14: 7 | AC14: 6 | AD14: 6 | BC14: 16 | BD14: 591 | BE14: =IF($O$4>0,(LARGE(($N14,$V14,$AD14,$AL14,$AT14,$BB14),1)),"0") -> 8 | BG14: 194 | BH14: 0 | BI14: 8 | BJ14: 397 | BL14: 1
A15: 7 | B15: 981651MK | C15: Anne Klein | D15: Ma Bel La | E15: M1 | F15: Heuvelruiters, RV. | J15: 0 | N15: 99 | P15: 185.5 | Q15: 0 | R15: 185.5 | S15: 6.5 | T15: 6.5 | U15: 5 | V15: 5 | W15: 1 | X15: 190 | Z15: 190 | AA15: 6 | AB15: 7 | AC15: 7 | AD15: 7 | BC15: 111 | BD15: 375.5 | BE15: =IF($O$4>0,(LARGE(($N15,$V15,$AD15,$AL15,$AT15,$BB15),1)),"0") -> 99 | BG15: 0 | BH15: 0 | BI15: 12 | BJ15: 375.5 | BL15: 2
A16: 8 | B16: 989495NB | C16: Wiebeke Frens - Brummer | D16: Notorious Nolan IWF | E16: M1 | F16: Nunspeetse Ruiterclub, RV. | H16: 198 | I16: 0 | J16: 198 | K16: 6.5 | L16: 7 | M16: 7 | N16: 7 | P16: 185 | Q16: 0 | R16: 185 | S16: 6.5 | T16: 6.5 | U16: 6 | V16: 6 | W16: 1 | X16: 186 | Z16: 186 | AA16: 7 | AB16: 6 | AC16: 9 | AD16: 9 | BC16: 22 | BD16: 569 | BE16: =IF($O$4>0,(LARGE(($N16,$V16,$AD16,$AL16,$AT16,$BB16),1)),"0") -> 9 | BG16: 186 | BH16: 0 | BI16: 13 | BJ16: 383
A17: 9 | B17: 944705HH | C17: Tinette Holzscherer | D17: Hauke van de Randmeerhoeve | E17: M1 | F17: Hulshorst, RV. | H17: 193 | I17: 0 | J17: 193 | K17: 6.5 | L17: 7 | M17: 9 | N17: 9 | R17: 0 | V17: 99 | W17: 1 | X17: 199 | Z17: 199 | AA17: 6 | AB17: 7 | AC17: 5 | AD17: 5 | BC17: 113 | BD17: 392 | BE17: =IF($O$4>0,(LARGE(($N17,$V17,$AD17,$AL17,$AT17,$BB17),1)),"0") -> 99 | BG17: 0 | BH17: 0 | BI17: 14 | BJ17: 392
A18: 10 | B18: 909770LS | C18: Helga Schuurman | D18: Lamborghini Jb | E18: M1 | F18: Noord Veluwe, RV. PSV | H18: 199 | I18: 0 | J18: 199 | K18: 6.5 | L18: 7 | M18: 6 | N18: 6 | P18: 179.5 | Q18: 0 | R18: 179.5 | S18: 6 | T18: 6.5 | U18: 8 | V18: 8 | W18: 1 | X18: 189 | Z18: 189 | AA18: 7 | AB18: 6 | AC18: 8 | AD18: 8 | BC18: 22 | BD18: 567.5 | BE18: =IF($O$4>0,(LARGE(($N18,$V18,$AD18,$AL18,$AT18,$BB18),1)),"0") -> 8 | BG18: 179.5 | BH18: 0 | BI18: 14 | BJ18: 388
A19: 11 | B19: 965850FW | C19: Babet Westerink | D19: Falstan | E19: M1 | F19: Flevoruiters, RV. | H19: 173.5 | I19: 0 | J19: 173.5 | K19: 6.5 | L19: 5.5 | M19: 13 | N19: 13 | P19: 184.5 | Q19: 0 | R19: 184.5 | S19: 6.5 | T19: 6.5 | U19: 7 | V19: 7 | W19: 1 | X19: 180 | Z19: 180 | AA19: 6 | AB19: 6 | AC19: 11 | AD19: 11 | BC19: 31 | BD19: 538 | BE19: =IF($O$4>0,(LARGE(($N19,$V19,$AD19,$AL19,$AT19,$BB19),1)),"0") -> 13 | BG19: 173.5 | BH19: 0 | BI19: 18 | BJ19: 364.5
A20: 12 | B20: 920219FG | C20: Sabiene Goudriaan | D20: Flamenco | E20: M1 | F20: Oost-Veluwse R.J.V., RV. | H20: 187.5 | I20: 0 | J20: 187.5 | K20: 6.5 | L20: 6.5 | M20: 10 | N20: 10 | P20: 179 | Q20: 0 | R20: 179 | S20: 5 | T20: 6 | U20: 9 | V20: 9 | W20: 1 | X20: 185 | Z20: 185 | AA20: 5 | AB20: 6 | AC20: 10 | AD20: 10 | BC20: 29 | BD20: 551.5 | BE20: =IF($O$4>0,(LARGE(($N20,$V20,$AD20,$AL20,$AT20,$BB20),1)),"0") -> 10 | BG20: 185 | BH20: 0 | BI20: 19 | BJ20: 366.5
A21: 13 | B21: 895679MT | C21: Irsa van der Tuin | D21: Magic Dream | E21: M1 | F21: Oost-Veluwse R.J.V., RV. | H21: 174 | I21: 0 | J21: 174 | K21: 5 | L21: 6 | M21: 12 | N21: 12 | P21: 162.5 | Q21: 0 | R21: 162.5 | S21: 5.5 | T21: 6 | U21: 10 | V21: 10 | Z21: 0 | AD21: 99 | BC21: 121 | BD21: 336.5 | BE21: =IF($O$4>0,(LARGE(($N21,$V21,$AD21,$AL21,$AT21,$BB21),1)),"0") -> 99 | BG21: 0 | BH21: 0 | BI21: 22 | BJ21: 336.5
A22: 14 | B22: 822777HN | C22: Aaltje Neijmeijer | D22: Highlight m | E22: M1 | F22: Nunspeetse Ruiterclub, RV. | H22: 181.5 | I22: 0 | J22: 181.5 | K22: 5.5 | L22: 6 | M22: 11 | N22: 11 | R22: 0 | V22: 99 | Z22: 0 | AD22: 99 | BC22: 209 | BD22: 181.5 | BE22: =IF($O$4>0,(LARGE(($N22,$V22,$AD22,$AL22,$AT22,$BB22),1)),"0") -> 99 | BG22: 0 | BH22: 0 | BI22: 110 | BJ22: 181.5
A23: 15 | B23: 986835LK | C23: Mandy Koops | D23: L'Expression | E23: M1 | F23: Hippisch Oosterwolde, RV. | H23: 159.5 | I23: 0 | J23: 159.5 | K23: 5 | L23: 5.5 | M23: 14 | N23: 14 | R23: 0 | V23: 99 | Z23: 0 | AD23: 99 | BC23: 212 | BD23: 159.5 | BE23: =IF($O$4>0,(LARGE(($N23,$V23,$AD23,$AL23,$AT23,$BB23),1)),"0") -> 99 | BG23: 0 | BH23: 0 | BI23: 113 | BJ23: 159.5
A24: 16 | B24: 888868BM | C24: Yvette Mijnheer | D24: Brechtje Van 't Klaphek | E24: M1 | F24: Nunspeetse Ruiterclub, RV. | H24: 158.5 | I24: 0 | J24: 158.5 | K24: 6 | L24: 5 | M24: 15 | N24: 15 | R24: 0 | V24: 99 | Z24: 0 | AD24: 99 | BC24: 213 | BD24: 158.5 | BE24: =IF($O$4>0,(LARGE(($N24,$V24,$AD24,$AL24,$AT24,$BB24),1)),"0") -> 99 | BG24: 0 | BH24: 0 | BI24: 114 | BJ24: 158.5

Sheet M2
A1: Selectie uitslagen
C2: 1 | D2: =FLOOR((C2+3)/4,1) -> 1 | H2: 192 | I2: 190 | J2: =H2+I2 -> 382 | N2: 1 | P2: 193 | Q2: 193 | R2: =P2+Q2 -> 386 | V2: 2 | X2: 198 | Y2: 198 | Z2: =X2+Y2 -> 396 | AD2: 3 | AF2: 177 | AG2: 177 | AH2: =AF2+AG2 -> 354 | AL2: 4 | AN2: 178 | AO2: 178 | AP2: =AN2+AO2 -> 356 | AT2: 5 | AV2: 179 | AW2: 179 | AX2: =AV2+AW2 -> 358 | BB2: 6 | BC2: =N2+V2+AD2+AL2+AT2+BB2 -> 21 | BD2: =J2+R2+Z2+AH2+AP2+AX2 -> 2232 | BE2: =IF($O$4>0,(LARGE(($N2,$V2,$AD2,$AL2,$AT2,$BB2),1)),"0") -> 6 | BF2: =IF($O$4>0,(LARGE(($N2,$V2,$AD2,$AL2,$AT2,$BB2),2)),"0") -> 5 | BG2: 354 | BH2: 354 | BI2: =BC2-BE2-BF2 -> 10 | BJ2: =BD2-BG2-BH2 -> 1524
A3: Kring: | C3: =Instellingen!B3 -> Kring NVF | F3: Aantal afvaardiging Regio: | O3: 6 | BC3: Aantal wedstrijden: | BL3: =Instellingen!B6 -> 3
A4: Klasse: | C4: M2 | F4: Aantal afval resultaten: | O4: =Instellingen!B7 -> 1
A5: Cat.: | F5: Plaatsingspunten niet gestart: | O5: =Instellingen!B5 -> 99 | BC5: Aantal reserves: | BL5: 2
F6: Lokatie: | G6: =Instellingen!B36 -> Hulshorst_Nunspeet | O6: =Instellingen!B37 -> Vaassen_Wezep | W6: =Instellingen!B38 -> Dronten_Hierden | AE6: =Instellingen!B39 -> 0 | AM6: =Instellingen!B40 -> 0 | AU6: =Instellingen!B41 -> 0 | BC6: Dressuur | BI6: Pnt. 60% regel | BL6: 180
F7: Datum: | G7: =Instellingen!C36 -> 03_04 nov 2023 | O7: =Instellingen!C37 -> 01_02 dec 2023 | W7: =Instellingen!C38 -> 08_09_15_16 dec 2023 | AE7: =Instellingen!C39 ->  | AM7: =Instellingen!C40 ->  | AU7: =Instellingen!C41 ->  | BC7: Tot. | BD7: Tot. | BE7: afval | BF7: afval | BG7: afval | BH7: afval | BI7: Beste | BJ7: Beste
A8: Pl. | B8: Comb.nr. | C8: Ruiter/amazone | D8: Paard/pony | E8: kl. | F8: vereniging | G8: Ring | H8: pnt.C | I8: pnt.H | J8: pnt.tot | K8: ex 1 | L8: ex 2 | M8: pl. | N8: pl.p. | O8: Ring | P8: pnt.C | Q8: pnt.H | R8: pnt.tot. | S8: ex 1 | T8: ex 2 | U8: pl. | V8: pl.p. | W8: Ring | X8: pnt.C | Y8: pnt. H | Z8: pnt.tot. | AA8: ex 1 | AB8: ex 2 | AC8: pl. | AD8: pl.p. | AE8: Ring | AF8: pnt.C | AG8: pnt.H | AH8: pnt.tot. | AI8: ex 1 | AJ8: ex 2 | AK8: pl. | AL8: pl.p. | AM8: Ring | AN8: pnt.C | AO8: pnt.H | AP8: pnt.tot. | AQ8: ex 1 | AR8: ex 2 | AS8: pl. | AT8: pl.p. | AU8: Ring | AV8: pnt.C | AW8: pnt.H | AX8: pnt.tot. | AY8: ex 1 | AZ8: ex 2 | BA8: pl. | BB8: pl.p. | BC8: pl.pnt | BD8: punten | BE8: pl.pnt | BF8: pl.pnt | BG8: punten | BH8: punten | BI8: pl.pnt | BJ8: punten | BK8: Afv. | BL8: Res. | BM8: Afv. Regio | BN8: opmerking
A9: 1 | B9: 959143CB | C9: Robin Blok | D9: Customzadels Lausanne | E9: M2 | F9: Heuvelruiters, RV. | H9: 196 | I9: 0 | J9: =H9+I9 -> 196 | K9: 6.5 | L9: 6.5 | M9: 5 | N9: 5 | P9: 197 | Q9: 0 | R9: =P9+Q9 -> 197 | S9: 7 | T9: 7.5 | U9: 1 | V9: 1 | W9: 1 | X9: 208 | Z9: =X9+Y9 -> 208 | AA9: 7 | AB9: 7 | AC9: 1 | AD9: 1 | BC9: =N9+V9+AD9+AL9+AT9+BB9 -> 7 | BD9: =J9+R9+Z9+AH9+AP9+AX9 -> 601 | BE9: =IF($O$4>0,(LARGE(($N9,$V9,$AD9,$AL9,$AT9,$BB9),1)),"0") -> 5 | BG9: 196 | BH9: 0 | BI9: =BC9-BE9-BF9 -> 2 | BJ9: =BD9-BG9-BH9 -> 405 | BK9: 1 | BN9: Kringkampioen
A10: 2 | B10: 962881MF | C10: Suzanne Feberwee | D10: Morgenster Norel | E10: M2 | F10: WWNA, RV. | H10: 185.5 | I10: 0 | J10: 185.5 | K10: 6.5 | L10: 6.5 | M10: 13 | N10: 13 | P10: 195.5 | Q10: 0 | R10: 195.5 | S10: 6.5 | T10: 7 | U10: 2 | V10: 2 | W10: 1 | X10: 196 | Z10: 196 | AA10: 7 | AB10: 7 | AC10: 3 | AD10: 3 | BC10: 18 | BD10: 577 | BE10: =IF($O$4>0,(LARGE(($N10,$V10,$AD10,$AL10,$AT10,$BB10),1)),"0") -> 13 | BG10: 185.5 | BH10: 0 | BI10: 5 | BJ10: 391.5 | BK10: 2
A11: 3 | B11: 946899NH | C11: Alexandra Hayes | D11: Noblesse Fortuna | E11: M2 | F11: Oost-Veluwse R.J.V., RV. | H11: 199.5 | I11: 0 | J11: 199.5 | K11: 6.5 | L11: 7 | M11: 3 | N11: 3 | P11: 176 | Q11: 0 | R11: 176 | S11: 5.5 | T11: 6.5 | U11: 12 | V11: 12 | W11: 1 | X11: 196 | Z11: 196 | AA11: 7 | AB11: 7 | AC11: 3 | AD11: 3 | BC11: 18 | BD11: 571.5 | BE11: =IF($O$4>0,(LARGE(($N11,$V11,$AD11,$AL11,$AT11,$BB11),1)),"0") -> 12 | BG11: 176 | BH11: 0 | BI11: 6 | BJ11: 395.5 | BK11: 3
A12: 4 | B12: 888687KH | C12: Angela Hooghordel | D12: Kryptonite | E12: M2 | F12: Nunspeetse Ruiterclub, RV. | H12: 201 | I12: 0 | J12: 201 | K12: 6.5 | L12: 7 | M12: 1 | N12: 1 | P12: 187 | Q12: 0 | R12: 187 | S12: 6.5 | T12: 6.5 | U12: 8 | V12: 8 | W12: 1 | X12: 191 | Z12: 191 | AA12: 7 | AB12: 7 | AC12: 6 | AD12: 6 | BC12: 15 | BD12: 579 | BE12: =IF($O$4>0,(LARGE(($N12,$V12,$AD12,$AL12,$AT12,$BB12),1)),"0") -> 8 | BG12: 187 | BH12: 0 | BI12: 7 | BJ12: 392 | BK12: 4
A13: 5 | B13: 874868JT | C13: Rosalie Tessemaker | D13: Jana-L | E13: M2 | F13: Horsthoekruiters, RV. | H13: 200 | I13: 0 | J13: 200 | K13: 6.5 | L13: 7 | M13: 2 | N13: 2 | P13: 189.5 | Q13: 0 | R13: 189.5 | S13: 6 | T13: 6.5 | U13: 6 | V13: 6 | W13: 1 | X13: 191 | Z13: 191 | AA13: 7 | AB13: 7 | AC13: 6 | AD13: 6 | BC13: 14 | BD13: 580.5 | BE13: =IF($O$4>0,(LARGE(($N13,$V13,$AD13,$AL13,$AT13,$BB13),1)),"0") -> 6 | BG13: 189.5 | BH13: 0 | BI13: 8 | BJ13: 391 | BK13: 5
A14: 6 | B14: 926598MG | C14: Elise Geschiere | D14: Mydrea V/D Sfeerhoeve | E14: M2 | F14: Flevoruiters, RV. | H14: 190 | I14: 0 | J14: 190 | K14: 6 | L14: 6.5 | M14: 10 | N14: 10 | P14: 185 | Q14: 0 | R14: 185 | S14: 6.5 | T14: 6.5 | U14: 9 | V14: 9 | W14: 1 | X14: 202 | Z14: 202 | AA14: 7 | AB14: 7 | AC14: 2 | AD14: 2 | BC14: 21 | BD14: 577 | BE14: =IF($O$4>0,(LARGE(($N14,$V14,$AD14,$AL14,$AT14,$BB14),1)),"0") -> 10 | BG14: 190 | BH14: 0 | BI14: 11 | BJ14: 387 | BK14: 6
A15: 7 | B15: 955913NJ | C15: Laura Jansen | D15: New Star | E15: M2 | F15: Nunspeetse Ruiterclub, RV. | H15: 193.5 | I15: 0 | J15: 193.5 | K15: 7 | L15: 7 | M15: 7 | N15: 7 | P15: 184.5 | Q15: 0 | R15: 184.5 | S15: 6 | T15: 6.5 | U15: 10 | V15: 10 | W15: 1 | X15: 195 | Z15: 195 | AA15: 7 | AB15: 7 | AC15: 5 | AD15: 5 | BC15: 22 | BD15: 573 | BE15: =IF($O$4>0,(LARGE(($N15,$V15,$AD15,$AL15,$AT15,$BB15),1)),"0") -> 10 | BG15: 184.5 | BH15: 0 | BI15: 12 | BJ15: 388.5 | BL15: 1
A16: 8 | B16: 938825NV | C16: Julia Vrolijken | D16: Nashville SC | E16: M2 | F16: Nunspeetse Ruiterclub, RV. | H16: 191.5 | I16: 0 | J16: 191.5 | K16: 6.5 | L16: 6.5 | M16: 9 | N16: 9 | P16: 190 | Q16: 0 | R16: 190 | S16: 6.5 | T16: 7 | U16: 3 | V16: 3 | W16: 1 | X16: 174 | Z16: 174 | AA16: 6 | AB16: 6 | AC16: 11 | AD16: 11 | BC16: 23 | BD16: 555.5 | BE16: =IF($O$4>0,(LARGE(($N16,$V16,$AD16,$AL16,$AT16,$BB16),1)),"0") -> 11 | BG16: 174 | BH16: 0 | BI16: 12 | BJ16: 381.5 | BL16: 2
A17: 9 | B17: 924475LK | C17: Annemieke Kool | D17: Lincoln | E17: M2 | F17: Heuvelruiters, RV. | J17: 0 | N17: 99 | P17: 189.5 | Q17: 0 | R17: 189.5 | S17: 6 | T17: 7 | U17: 5 | V17: 5 | W17: 1 | X17: 186 | Z17: 186 | AA17: 7 | AB17: 7 | AC17: 8 | AD17: 8 | BC17: 112 | BD17: 375.5 | BE17: =IF($O$4>0,(LARGE(($N17,$V17,$AD17,$AL17,$AT17,$BB17),1)),"0") -> 99 | BG17: 0 | BH17: 0 | BI17: 13 | BJ17: 375.5
A18: 10 | B18: 968370JO | C18: Denise den Ouden | D18: Jupiler | E18: M2 | F18: Nunspeetse Ruiterclub, RV. | H18: 195 | I18: 0 | J18: 195 | K18: 6.5 | L18: 6.5 | M18: 6 | N18: 6 | P18: 188.5 | Q18: 0 | R18: 188.5 | S18: 6.5 | T18: 7 | U18: 7 | V18: 7 | W18: 1 | X18: 185 | Z18: 185 | AA18: 6 | AB18: 6 | AC18: 9 | AD18: 9 | BC18: 22 | BD18: 568.5 | BE18: =IF($O$4>0,(LARGE(($N18,$V18,$AD18,$AL18,$AT18,$BB18),1)),"0") -> 9 | BG18: 185 | BH18: 0 | BI18: 13 | BJ18: 383.5
A19: 11 | B19: 977655GV | C19: Helma Franken - Vromen | D19: Gruyters medley | E19: M2 | F19: Nunspeetse Ruiterclub, RV. | H19: 197.5 | I19: 0 | J19: 197.5 | K19: 7 | L19: 7.5 | M19: 4 | N19: 4 | P19: 179.5 | Q19: 0 | R19: 179.5 | S19: 6 | T19: 6.5 | U19: 11 | V19: 11 | W19: 1 | X19: 172 | Z19: 172 | AA19: 6 | AB19: 7 | AC19: 12 | AD19: 12 | BC19: 27 | BD19: 549 | BE19: =IF($O$4>0,(LARGE(($N19,$V19,$AD19,$AL19,$AT19,$BB19),1)),"0") -> 12 | BG19: 172 | BH19: 0 | BI19: 15 | BJ19: 377
A20: 12 | B20: 932416MB | C20: Marleen Bronsink | D20: Dansa's Modansa | E20: M2 | F20: Heuvelruiters, RV. | H20: 167 | I20: 0 | J20: 167 | K20: 6 | L20: 6 | M20: 18 | N20: 18 | P20: 189.5 | Q20: 0 | R20: 189.5 | S20: 6.5 | T20: 7 | U20: 4 | V20: 4 | W20: 1 | X20: 162 | Z20: 162 | AA20: 4 | AB20: 4 | AC20: 14 | AD20: 14 | BC20: 36 | BD20: 518.5 | BE20: =IF($O$4>0,(LARGE(($N20,$V20,$AD20,$AL20,$AT20,$BB20),1)),"0") -> 18 | BG20: 167 | BH20: 0 | BI20: 18 | BJ20: 351.5
A21: 13 | B21: 932227LK | C21: Susanne Kogelman | D21: Dansa's La Dansa | E21: M2 | F21: Heuvelruiters, RV. | H21: 181.5 | I21: 0 | J21: 181.5 | K21: 6 | L21: 6.5 | M21: 15 | N21: 15 | P21: 168 | Q21: 0 | R21: 168 | S21: 5.5 | T21: 6 | U21: 15 | V21: 15 | W21: 1 | X21: 181 | Z21: 181 | AA21: 7 | AB21: 6 | AC21: 10 | AD21: 10 | BC21: 40 | BD21: 530.5 | BE21: =IF($O$4>0,(LARGE(($N21,$V21,$AD21,$AL21,$AT21,$BB21),1)),"0") -> 15 | BG21: 168 | BH21: 0 | BI21: 25 | BJ21: 362.5
A22: 14 | B22: 818386EK | C22: Miriam Kaal | D22: Earlyways | E22: M2 | F22: Oost-Veluwse R.J.V., RV. | H22: 186.5 | I22: 0 | J22: 186.5 | K22: 6 | L22: 6.5 | M22: 12 | N22: 12 | P22: 176 | Q22: 0 | R22: 176 | S22: 5.5 | T22: 6 | U22: 13 | V22: 13 | W22: 1 | X22: 166 | Z22: 166 | AA22: 6 | AB22: 6 | AC22: 13 | AD22: 13 | BC22: 38 | BD22: 528.5 | BE22: =IF($O$4>0,(LARGE(($N22,$V22,$AD22,$AL22,$AT22,$BB22),1)),"0") -> 13 | BG22: 166 | BH22: 0 | BI22: 25 | BJ22: 362.5
A23: 15 | B23: 919958MG | C23: Rosan Van de Goor | D23: Massaro | E23: M2 | F23: Heuvelruiters, RV. | H23: 188.5 | I23: 0 | J23: 188.5 | K23: 7 | L23: 7 | M23: 11 | N23: 11 | P23: 173.5 | Q23: 0 | R23: 173.5 | S23: 6 | T23: 6.5 | U23: 14 | V23: 14 | Z23: 0 | AD23: 99 | BC23: 124 | BD23: 362 | BE23: =IF($O$4>0,(LARGE(($N23,$V23,$AD23,$AL23,$AT23,$BB23),1)),"0") -> 99 | BG23: 0 | BH23: 0 | BI23: 25 | BJ23: 362
A24: 16 | B24: 921846LC | C24: Hetty De Weerdt - Colijn | D24: Let'S Dance Str | E24: M2 | F24: Schaapskooiruiters, RV. De | H24: 172 | I24: 0 | J24: 172 | K24: 6 | L24: 6 | M24: 17 | N24: 17 | P24: 165 | Q24: 0 | R24: 165 | S24: 6 | T24: 6 | U24: 16 | V24: 16 | Z24: 0 | AD24: 99 | BC24: 132 | BD24: 337 | BE24: =IF($O$4>0,(LARGE(($N24,$V24,$AD24,$AL24,$AT24,$BB24),1)),"0") -> 99 | BG24: 0 | BH24: 0 | BI24: 33 | BJ24: 337
A25: 17 | B25: 825859HP | C25: Sanne Platte | D25: Hopes and Fears | E25: M2 | F25: Nunspeetse Ruiterclub, RV. | H25: 193 | I25: 0 | J25: 193 | K25: 6.5 | L25: 7 | M25: 8 | N25: 8 | R25: 0 | V25: 99 | Z25: 0 | AD25: 99 | BC25: 206 | BD25: 193 | BE25: =IF($O$4>0,(LARGE(($N25,$V25,$AD25,$AL25,$AT25,$BB25),1)),"0") -> 99 | BG25: 0 | BH25: 0 | BI25: 107 | BJ25: 193
A26: 18 | B26: 713295AD | C26: Aliene Van Dijk | D26: Armani uit Tonsel | E26: M2 | F26: Stal Rodeo, RV. RSV. | H26: 183.5 | I26: 0 | J26: 183.5 | K26: 6.5 | L26: 7 | M26: 14 | N26: 14 | R26: 0 | V26: 99 | Z26: 0 | AD26: 99 | BC26: 212 | BD26: 183.5 | BE26: =IF($O$4>0,(LARGE(($N26,$V26,$AD26,$AL26,$AT26,$BB26),1)),"0") -> 99 | BG26: 0 | BH26: 0 | BI26: 113 | BJ26: 183.5
A27: 19 | B27: 853873GN | C27: Ilse van der Niet | D27: Gentleman van de vingerling | E27: M2 | F27: Randmeerruiters, RV. De | H27: 181 | I27: 0 | J27: 181 | K27: 6.5 | L27: 7 | M27: 16 | N27: 16 | R27: 0 | V27: 99 | Z27: 0 | AD27: 99 | BC27: 214 | BD27: 181 | BE27: =IF($O$4>0,(LARGE(($N27,$V27,$AD27,$AL27,$AT27,$BB27),1)),"0") -> 99 | BG27: 0 | BH27: 0 | BI27: 115 | BJ27: 181
A28: 20 | B28: 672235DP | C28: Tamara Ploeg | D28: Doneur | E28: M2 | F28: Oost-Veluwse R.J.V., RV. | H28: 0 | I28: 0 | J28: 0 | M28: 19 | N28: 90 | R28: 0 | V28: 99 | Z28: 0 | AD28: 99 | BC28: 288 | BD28: 0 | BE28: =IF($O$4>0,(LARGE(($N28,$V28,$AD28,$AL28,$AT28,$BB28),1)),"0") -> 99 | BG28: 0 | BH28: 0 | BI28: 189 | BJ28: 0

Sheet M1 - M2 (hidden)
A1: Selectie uitslagen
C2: 1 | D2: =FLOOR((C2+3)/4,1) -> 1 | G2: 192 | H2: 192 | I2: 190 | J2: =H2+I2 -> 382 | N2: 1 | O2: 193 | P2: 193 | Q2: 193 | R2: =P2+Q2 -> 386 | V2: 2 | W2: 198 | X2: 198 | Y2: 198 | Z2: =X2+Y2 -> 396 | AD2: 3 | AE2: 177 | AF2: 177 | AG2: 177 | AH2: =AF2+AG2 -> 354 | AL2: 4 | AM2: 178 | AN2: 178 | AO2: 178 | AP2: =AN2+AO2 -> 356 | AT2: 5 | AU2: 179 | AV2: 179 | AW2: 179 | AX2: =AV2+AW2 -> 358 | BB2: 6 | BC2: =N2+V2+AD2+AL2+AT2+BB2 -> 21 | BD2: =J2+R2+Z2+AH2+AP2+AX2 -> 2232 | BE2: =IF($O$4>0,(LARGE(($N2,$V2,$AD2,$AL2,$AT2,$BB2),1)),"0") -> 6 | BF2: =IF($O$4>0,(LARGE(($N2,$V2,$AD2,$AL2,$AT2,$BB2),2)),"0") -> 5 | BG2: 354 | BH2: 354 | BI2: =BC2-BE2-BF2 -> 10 | BJ2: =BD2-BG2-BH2 -> 1524
A3: Kring: | C3: =Instellingen!B3 -> Kring NVF | BC3: Aantal wedstrijden: | BL3: =Instellingen!B6 -> 3
A4: Klasse: | C4: M1 - M2 | F4: Aantal afval resultaten: | O4: =Instellingen!B7 -> 1
A5: Cat.: | F5: Plaatsingspunten niet gestart: | O5: =Instellingen!B5 -> 99
F6: Lokatie: | G6: =Instellingen!B36 -> Hulshorst_Nunspeet | O6: =Instellingen!B37 -> Vaassen_Wezep | W6: =Instellingen!B38 -> Dronten_Hierden | AE6: =Instellingen!B39 -> 0 | AM6: =Instellingen!B40 -> 0 | AU6: =Instellingen!B41 -> 0 | BC6: Dressuur
F7: Datum: | G7: =Instellingen!C36 -> 03_04 nov 2023 | O7: =Instellingen!C37 -> 01_02 dec 2023 | W7: =Instellingen!C38 -> 08_09_15_16 dec 2023 | AE7: =Instellingen!C39 ->  | AM7: =Instellingen!C40 ->  | AU7: =Instellingen!C41 ->  | BC7: Tot. | BD7: Tot. | BE7: afval | BF7: afval | BG7: afval | BH7: afval | BI7: Beste | BJ7: Beste
A8: Pl. | B8: Comb.nr. | C8: Ruiter/amazone | D8: Paard/pony | E8: kl. | F8: vereniging | G8: Ring | H8: pnt.C | I8: pnt.H | J8: pnt.tot | K8: ex 1 | L8: ex 2 | M8: pl. | N8: pl.p. | O8: Ring | P8: pnt.C | Q8: pnt.H | R8: pnt.tot. | S8: ex 1 | T8: ex 2 | U8: pl. | V8: pl.p. | W8: Ring | X8: pnt.C | Y8: pnt. H | Z8: pnt.tot. | AA8: ex 1 | AB8: ex 2 | AC8: pl. | AD8: pl.p. | AE8: Ring | AF8: pnt.C | AG8: pnt.H | AH8: pnt.tot. | AI8: ex 1 | AJ8: ex 2 | AK8: pl. | AL8: pl.p. | AM8: Ring | AN8: pnt.C | AO8: pnt.H | AP8: pnt.tot. | AQ8: ex 1 | AR8: ex 2 | AS8: pl. | AT8: pl.p. | AU8: Ring | AV8: pnt.C | AW8: pnt.H | AX8: pnt.tot. | AY8: ex 1 | AZ8: ex 2 | BA8: pl. | BB8: pl.p. | BC8: pl.pnt | BD8: punten | BE8: pl.pnt | BF8: pl.pnt | BG8: punten | BH8: punten | BI8: pl.pnt | BJ8: punten | BK8: Afv. | BL8: Res. | BN8: opmerking

Sheet Z1
A1: Selectie uitslagen
C2: 1 | D2: =FLOOR((C2+3)/4,1) -> 1 | H2: 192 | I2: 190 | J2: =H2+I2 -> 382 | N2: 1 | P2: 193 | Q2: 193 | R2: =P2+Q2 -> 386 | V2: 2 | X2: 198 | Y2: 198 | Z2: =X2+Y2 -> 396 | AD2: 3 | AF2: 177 | AG2: 177 | AH2: =AF2+AG2 -> 354 | AL2: 4 | AN2: 178 | AO2: 178 | AP2: =AN2+AO2 -> 356 | AT2: 5 | AV2: 179 | AW2: 179 | AX2: =AV2+AW2 -> 358 | BB2: 6 | BC2: =N2+V2+AD2+AL2+AT2+BB2 -> 21 | BD2: =J2+R2+Z2+AH2+AP2+AX2 -> 2232 | BE2: =IF($O$4>0,(LARGE(($N2,$V2,$AD2,$AL2,$AT2,$BB2),1)),"0") -> 6 | BF2: =IF($O$4>0,(LARGE(($N2,$V2,$AD2,$AL2,$AT2,$BB2),2)),"0") -> 5 | BG2: 354 | BH2: 354 | BI2: =BC2-BE2-BF2 -> 10 | BJ2: =BD2-BG2-BH2 -> 1524
A3: Kring: | C3: =Instellingen!B3 -> Kring NVF | F3: Aantal afvaardiging Regio: | O3: 5 | BC3: Aantal wedstrijden: | BL3: =Instellingen!B6 -> 3
A4: Klasse: | C4: Z1 | F4: Aantal afval resultaten: | O4: =Instellingen!B7 -> 1
A5: Cat.: | F5: Plaatsingspunten niet gestart: | O5: =Instellingen!B5 -> 99 | BC5: Aantal reserves: | BL5: 2
F6: Lokatie: | G6: =Instellingen!B36 -> Hulshorst_Nunspeet | O6: =Instellingen!B37 -> Vaassen_Wezep | W6: =Instellingen!B38 -> Dronten_Hierden | AE6: =Instellingen!B39 -> 0 | AM6: =Instellingen!B40 -> 0 | AU6: =Instellingen!B41 -> 0 | BC6: Dressuur | BI6: Pnt. 60% regel | BL6: 210
F7: Datum: | G7: =Instellingen!C36 -> 03_04 nov 2023 | O7: =Instellingen!C37 -> 01_02 dec 2023 | W7: =Instellingen!C38 -> 08_09_15_16 dec 2023 | AE7: =Instellingen!C39 ->  | AM7: =Instellingen!C40 ->  | AU7: =Instellingen!C41 ->  | BC7: Tot. | BD7: Tot. | BE7: afval | BF7: afval | BG7: afval | BH7: afval | BI7: Beste | BJ7: Beste
A8: Pl. | B8: Comb.nr. | C8: Ruiter/amazone | D8: Paard/pony | E8: kl. | F8: vereniging | G8: Ring | H8: pnt.C | I8: pnt.H | J8: pnt.tot | K8: ex 1 | L8: ex 2 | M8: pl. | N8: pl.p. | O8: Ring | P8: pnt.C | Q8: pnt.H | R8: pnt.tot. | S8: ex 1 | T8: ex 2 | U8: pl. | V8: pl.p. | W8: Ring | X8: pnt.C | Y8: pnt. H | Z8: pnt.tot. | AA8: ex 1 | AB8: ex 2 | AC8: pl. | AD8: pl.p. | AE8: Ring | AF8: pnt.C | AG8: pnt.H | AH8: pnt.tot. | AI8: ex 1 | AJ8: ex 2 | AK8: pl. | AL8: pl.p. | AM8: Ring | AN8: pnt.C | AO8: pnt.H | AP8: pnt.tot. | AQ8: ex 1 | AR8: ex 2 | AS8: pl. | AT8: pl.p. | AU8: Ring | AV8: pnt.C | AW8: pnt.H | AX8: pnt.tot. | AY8: ex 1 | AZ8: ex 2 | BA8: pl. | BB8: pl.p. | BC8: pl.pnt | BD8: punten | BE8: pl.pnt | BF8: pl.pnt | BG8: punten | BH8: punten | BI8: pl.pnt | BJ8: punten | BK8: Afv. | BL8: Res. | BM8: Afv. Regio | BN8: opmerking
A9: 1 | B9: 991171HN | C9: Ellemijn van Norel | D9: Holly | E9: Z1 | F9: Schaapskooiruiters, RV. De | H9: 69.286 | I9: 0 | J9: =H9+I9 -> 69.286 | K9: 70 | L9: 80 | M9: 1 | N9: 1 | P9: 238.5 | Q9: 0 | R9: =P9+Q9 -> 238.5 | S9: 7 | T9: 7 | U9: 1 | V9: 1 | W9: 1 | X9: 216.5 | Z9: =X9+Y9 -> 216.5 | AA9: 6 | AB9: 6.5 | AC9: 6 | AD9: 6 | BC9: =N9+V9+AD9+AL9+AT9+BB9 -> 8 | BD9: =J9+R9+Z9+AH9+AP9+AX9 -> 524.286 | BE9: =IF($O$4>0,(LARGE(($N9,$V9,$AD9,$AL9,$AT9,$BB9),1)),"0") -> 6 | BG9: 216.5 | BH9: 0 | BI9: =BC9-BE9-BF9 -> 2 | BJ9: =BD9-BG9-BH9 -> 307.786 | BK9: 1 | BN9: Kringkampioen
A10: 2 | B10: 876144JS | C10: Lotte Schut | D10: Jazzy T | E10: Z1 | F10: Schaapskooiruiters, RV. De | H10: 64 | I10: 0 | J10: 64 | K10: 50 | L10: 65 | M10: 8 | N10: 8 | P10: 234 | Q10: 0 | R10: 234 | S10: 7 | T10: 7 | U10: 2 | V10: 2 | W10: 1 | X10: 228 | Z10: 228 | AA10: 7 | AB10: 7 | AC10: 1 | AD10: 1 | BC10: 11 | BD10: 526 | BE10: =IF($O$4>0,(LARGE(($N10,$V10,$AD10,$AL10,$AT10,$BB10),1)),"0") -> 8 | BG10: 64 | BH10: 0 | BI10: 3 | BJ10: 462 | BK10: 2
A11: 3 | B11: 927495LH | C11: Liesbeth Hop | D11: Larouche | E11: Z1 | F11: Randmeerruiters, RV. De | H11: 67.714 | I11: 0 | J11: 67.714 | K11: 70 | L11: 80 | M11: 2 | N11: 2 | P11: 232 | Q11: 0 | R11: 232 | S11: 6.5 | T11: 7 | U11: 3 | V11: 3 | W11: 1 | X11: 220 | Z11: 220 | AA11: 6 | AB11: 7 | AC11: 4 | AD11: 4 | BC11: 9 | BD11: 519.714 | BE11: =IF($O$4>0,(LARGE(($N11,$V11,$AD11,$AL11,$AT11,$BB11),1)),"0") -> 4 | BG11: 220 | BH11: 0 | BI11: 5 | BJ11: 299.714 | BK11: 3
A12: 4 | B12: 904477LW | C12: Stefanie Waaijenberg | D12: Lago Maggiore | E12: Z1 | F12: Nunspeetse Ruiterclub, RV. | H12: 65.714 | I12: 0 | J12: 65.714 | K12: 65 | L12: 70 | M12: 5 | N12: 5 | P12: 229.5 | Q12: 0 | R12: 229.5 | S12: 6 | T12: 7 | U12: 4 | V12: 4 | W12: 1 | X12: 222.5 | Z12: 222.5 | AA12: 6.5 | AB12: 7 | AC12: 2 | AD12: 2 | BC12: 11 | BD12: 517.714 | BE12: =IF($O$4>0,(LARGE(($N12,$V12,$AD12,$AL12,$AT12,$BB12),1)),"0") -> 5 | BG12: 65.714 | BH12: 0 | BI12: 6 | BJ12: 452 | BK12: 4
A13: 5 | B13: 897187LG | C13: Rosan Van de Goor | D13: Lavendel | E13: Z1 | F13: Heuvelruiters, RV. | H13: 64.857 | I13: 0 | J13: 64.857 | K13: 65 | L13: 70 | M13: 6 | N13: 6 | P13: 225.5 | Q13: 0 | R13: 225.5 | S13: 6.5 | T13: 7.5 | U13: 5 | V13: 5 | W13: 1 | X13: 222.5 | Z13: 222.5 | AA13: 6.5 | AB13: 7 | AC13: 2 | AD13: 2 | BC13: 13 | BD13: 512.857 | BE13: =IF($O$4>0,(LARGE(($N13,$V13,$AD13,$AL13,$AT13,$BB13),1)),"0") -> 6 | BG13: 64.857 | BH13: 0 | BI13: 7 | BJ13: 448 | BK13: 5
A14: 6 | B14: 884764KG | C14: Anna Te Grotenhuis | D14: King Arthur | E14: Z1 | F14: Heuvelruiters, RV. | H14: 65.857 | I14: 0 | J14: 65.857 | K14: 65 | L14: 70 | M14: 3 | N14: 3 | P14: 214.5 | Q14: 0 | R14: 214.5 | S14: 6 | T14: 6.5 | U14: 8 | V14: 8 | W14: 1 | X14: 211.5 | Z14: 211.5 | AA14: 6 | AB14: 6.5 | AC14: 7 | AD14: 7 | BC14: 18 | BD14: 491.857 | BE14: =IF($O$4>0,(LARGE(($N14,$V14,$AD14,$AL14,$AT14,$BB14),1)),"0") -> 8 | BG14: 214.5 | BH14: 0 | BI14: 10 | BJ14: 277.357 | BL14: 1
A15: 7 | B15: 865730IS | C15: Marianne Freriks - Schutte | D15: Ikeja | E15: Z1 | F15: Cannenburgh, RV. HV. De | H15: 62.571 | I15: 0 | J15: 62.571 | K15: 60 | L15: 65 | M15: 12 | N15: 12 | P15: 214.5 | Q15: 0 | R15: 214.5 | S15: 6.5 | T15: 6.5 | U15: 7 | V15: 7 | W15: 1 | X15: 197 | Z15: 197 | AA15: 6 | AB15: 6 | AC15: 8 | AD15: 8 | BC15: 27 | BD15: 474.071 | BE15: =IF($O$4>0,(LARGE(($N15,$V15,$AD15,$AL15,$AT15,$BB15),1)),"0") -> 12 | BG15: 62.571 | BH15: 0 | BI15: 15 | BJ15: 411.5 | BL15: 2
A16: 8 | B16: 766513BB | C16: Fleur Berkhof | D16: Bambino DB | E16: Z1 | F16: Cannenburgh, RV. HV. De | H16: 61.571 | I16: 0 | J16: 61.571 | K16: 60 | L16: 65 | M16: 14 | N16: 14 | P16: 198.5 | Q16: 0 | R16: 198.5 | S16: 6 | T16: 6.5 | U16: 10 | V16: 10 | Z16: 0 | AD16: 99 | BC16: 123 | BD16: 260.071 | BE16: =IF($O$4>0,(LARGE(($N16,$V16,$AD16,$AL16,$AT16,$BB16),1)),"0") -> 99 | BG16: 0 | BH16: 0 | BI16: 24 | BJ16: 260.071
A17: 9 | B17: 937352MA | C17: Ant Anema | D17: Mylan | E17: Z1 | F17: WWNA, RV. | J17: 0 | N17: 99 | P17: 210.5 | Q17: 0 | R17: 210.5 | S17: 5.5 | T17: 6 | U17: 9 | V17: 9 | Z17: 0 | AD17: 99 | BC17: 207 | BD17: 210.5 | BE17: =IF($O$4>0,(LARGE(($N17,$V17,$AD17,$AL17,$AT17,$BB17),1)),"0") -> 99 | BG17: 0 | BH17: 0 | BI17: 108 | BJ17: 210.5
A18: 10 | B18: 993305FM | C18: Wesley Mulder | D18: Floris | E18: Z1 | F18: WWNA, RV. | H18: 65.714 | I18: 0 | J18: 65.714 | K18: 70 | L18: 70 | M18: 4 | N18: 4 | R18: 0 | V18: 99 | Z18: 0 | AD18: 99 | BC18: 202 | BD18: 65.714 | BE18: =IF($O$4>0,(LARGE(($N18,$V18,$AD18,$AL18,$AT18,$BB18),1)),"0") -> 99 | BG18: 0 | BH18: 0 | BI18: 103 | BJ18: 65.714
A19: 11 | B19: 927477JG | C19: Iris Groeneveld | D19: Just-In Case | F19: Randmeerruiters, RV. De | J19: 0 | N19: 99 | R19: 0 | V19: 99 | W19: 1 | X19: 218.5 | Z19: 218.5 | AA19: 6 | AB19: 7 | AC19: 5 | AD19: 5 | BC19: 203 | BD19: 218.5 | BE19: =IF($O$4>0,(LARGE(($N19,$V19,$AD19,$AL19,$AT19,$BB19),1)),"0") -> 99 | BG19: 0 | BH19: 0 | BI19: 104 | BJ19: 218.5
A20: 12 | B20: 917123JS | C20: Diana van der Spek | D20: Jersey Ds | E20: Z1 | F20: Oost-Veluwse R.J.V., RV. | J20: 0 | N20: 99 | P20: 222.5 | Q20: 0 | R20: 222.5 | S20: 6 | T20: 7 | U20: 6 | V20: 6 | Z20: 0 | AD20: 99 | BC20: 204 | BD20: 222.5 | BE20: =IF($O$4>0,(LARGE(($N20,$V20,$AD20,$AL20,$AT20,$BB20),1)),"0") -> 99 | BG20: 0 | BH20: 0 | BI20: 105 | BJ20: 222.5
A21: 13 | B21: 825045IS | C21: Thersa Schrijver | D21: Ilana | E21: Z1 | F21: Nunspeetse Ruiterclub, RV. | H21: 64.857 | I21: 0 | J21: 64.857 | K21: 60 | L21: 65 | M21: 7 | N21: 7 | R21: 0 | V21: 99 | Z21: 0 | AD21: 99 | BC21: 205 | BD21: 64.857 | BE21: =IF($O$4>0,(LARGE(($N21,$V21,$AD21,$AL21,$AT21,$BB21),1)),"0") -> 99 | BG21: 0 | BH21: 0 | BI21: 106 | BJ21: 64.857
A22: 14 | B22: 948027MM | C22: Wesley Mulder | D22: Mascotte-Strh. | E22: Z1 | F22: WWNA, RV. | H22: 63.571 | I22: 0 | J22: 63.571 | K22: 70 | L22: 70 | M22: 9 | N22: 9 | R22: 0 | V22: 99 | Z22: 0 | AD22: 99 | BC22: 207 | BD22: 63.571 | BE22: =IF($O$4>0,(LARGE(($N22,$V22,$AD22,$AL22,$AT22,$BB22),1)),"0") -> 99 | BG22: 0 | BH22: 0 | BI22: 108 | BJ22: 63.571
A23: 15 | B23: 812597OS | C23: Lotte Schut | D23: Orchard Jus de Pommes | E23: Z1 | F23: Schaapskooiruiters, RV. De | H23: 62.857 | I23: 0 | J23: 62.857 | K23: 65 | L23: 65 | M23: 10 | N23: 10 | R23: 0 | V23: 99 | Z23: 0 | AD23: 99 | BC23: 208 | BD23: 62.857 | BE23: =IF($O$4>0,(LARGE(($N23,$V23,$AD23,$AL23,$AT23,$BB23),1)),"0") -> 99 | BG23: 0 | BH23: 0 | BI23: 109 | BJ23: 62.857
A24: 16 | B24: 944582MA | C24: Ant Anema | D24: Matrix A | E24: Z1 | F24: WWNA, RV. | J24: 0 | N24: 99 | P24: 190 | Q24: 0 | R24: 190 | S24: 5 | T24: 6 | U24: 11 | V24: 11 | Z24: 0 | AD24: 99 | BC24: 209 | BD24: 190 | BE24: =IF($O$4>0,(LARGE(($N24,$V24,$AD24,$AL24,$AT24,$BB24),1)),"0") -> 99 | BG24: 0 | BH24: 0 | BI24: 110 | BJ24: 190
A25: 17 | B25: 992169EB | C25: Wendy Uijt de Boogaardt | D25: Evitalena | E25: Z1 | F25: Hippisch Oosterwolde, RV. | H25: 62.714 | I25: 0 | J25: 62.714 | K25: 60 | L25: 65 | M25: 11 | N25: 11 | R25: 0 | V25: 99 | Z25: 0 | AD25: 99 | BC25: 209 | BD25: 62.714 | BE25: =IF($O$4>0,(LARGE(($N25,$V25,$AD25,$AL25,$AT25,$BB25),1)),"0") -> 99 | BG25: 0 | BH25: 0 | BI25: 110 | BJ25: 62.714
A26: 18 | B26: 938137ZB | C26: Linda Den Boer | D26: Zuchero Swing | E26: Z1 | F26: Nunspeetse Ruiterclub, RV. | H26: 62.429 | I26: 0 | J26: 62.429 | K26: 60 | L26: 65 | M26: 13 | N26: 13 | R26: 0 | V26: 99 | Z26: 0 | AD26: 99 | BC26: 211 | BD26: 62.429 | BE26: =IF($O$4>0,(LARGE(($N26,$V26,$AD26,$AL26,$AT26,$BB26),1)),"0") -> 99 | BG26: 0 | BH26: 0 | BI26: 112 | BJ26: 62.429
A27: 19 | B27: 923199LA | C27: Chantal Van Ark | D27: Lexmary | E27: Z1 | F27: Randmeerruiters, RV. De | H27: 61.429 | I27: 0 | J27: 61.429 | K27: 60 | L27: 65 | M27: 15 | N27: 15 | R27: 0 | V27: 99 | Z27: 0 | AD27: 99 | BC27: 213 | BD27: 61.429 | BE27: =IF($O$4>0,(LARGE(($N27,$V27,$AD27,$AL27,$AT27,$BB27),1)),"0") -> 99 | BG27: 0 | BH27: 0 | BI27: 114 | BJ27: 61.429
A28: 20 | B28: 817830GE | C28: Natalie van Emden | D28: Glennis v | E28: Z1 | F28: Oost-Veluwse R.J.V., RV. | H28: 57.429 | I28: 0 | J28: 57.429 | K28: 60 | L28: 65 | M28: 16 | N28: 16 | R28: 0 | V28: 99 | Z28: 0 | AD28: 99 | BC28: 214 | BD28: 57.429 | BE28: =IF($O$4>0,(LARGE(($N28,$V28,$AD28,$AL28,$AT28,$BB28),1)),"0") -> 99 | BG28: 0 | BH28: 0 | BI28: 115 | BJ28: 57.429

Sheet Z2
A1: Selectie uitslagen
C2: 1 | D2: =FLOOR((C2+3)/4,1) -> 1 | H2: 192 | I2: 190 | J2: =H2+I2 -> 382 | N2: 1 | P2: 193 | Q2: 193 | R2: =P2+Q2 -> 386 | V2: 2 | X2: 198 | Y2: 198 | Z2: =X2+Y2 -> 396 | AD2: 3 | AF2: 177 | AG2: 177 | AH2: =AF2+AG2 -> 354 | AL2: 4 | AN2: 178 | AO2: 178 | AP2: =AN2+AO2 -> 356 | AT2: 5 | AV2: 179 | AW2: 179 | AX2: =AV2+AW2 -> 358 | BB2: 6 | BC2: =N2+V2+AD2+AL2+AT2+BB2 -> 21 | BD2: =J2+R2+Z2+AH2+AP2+AX2 -> 2232 | BE2: =IF($O$4>0,(LARGE(($N2,$V2,$AD2,$AL2,$AT2,$BB2),1)),"0") -> 6 | BF2: =IF($O$4>0,(LARGE(($N2,$V2,$AD2,$AL2,$AT2,$BB2),2)),"0") -> 5 | BG2: 354 | BH2: 354 | BI2: =BC2-BE2-BF2 -> 10 | BJ2: =BD2-BG2-BH2 -> 1524
A3: Kring: | C3: =Instellingen!B3 -> Kring NVF | F3: Aantal afvaardiging Regio: | O3: 4 | BC3: Aantal wedstrijden: | BL3: =Instellingen!B6 -> 3
A4: Klasse: | C4: Z2 | F4: Aantal afval resultaten: | O4: =Instellingen!B7 -> 1
A5: Cat.: | F5: Plaatsingspunten niet gestart: | O5: =Instellingen!B5 -> 99 | BC5: Aantal reserves: | BL5: 2
F6: Lokatie: | G6: =Instellingen!B36 -> Hulshorst_Nunspeet | O6: =Instellingen!B37 -> Vaassen_Wezep | W6: =Instellingen!B38 -> Dronten_Hierden | AE6: =Instellingen!B39 -> 0 | AM6: =Instellingen!B40 -> 0 | AU6: =Instellingen!B41 -> 0 | BC6: Dressuur | BI6: Pnt. 60% regel | BL6: 210
F7: Datum: | G7: =Instellingen!C36 -> 03_04 nov 2023 | O7: =Instellingen!C37 -> 01_02 dec 2023 | W7: =Instellingen!C38 -> 08_09_15_16 dec 2023 | AE7: =Instellingen!C39 ->  | AM7: =Instellingen!C40 ->  | AU7: =Instellingen!C41 ->  | BC7: Tot. | BD7: Tot. | BE7: afval | BF7: afval | BG7: afval | BH7: afval | BI7: Beste | BJ7: Beste
A8: Pl. | B8: Comb.nr. | C8: Ruiter/amazone | D8: Paard/pony | E8: kl. | F8: vereniging | G8: Ring | H8: pnt.C | I8: pnt.H | J8: pnt.tot | K8: ex 1 | L8: ex 2 | M8: pl. | N8: pl.p. | O8: Ring | P8: pnt.C | Q8: pnt.H | R8: pnt.tot. | S8: ex 1 | T8: ex 2 | U8: pl. | V8: pl.p. | W8: Ring | X8: pnt.C | Y8: pnt. H | Z8: pnt.tot. | AA8: ex 1 | AB8: ex 2 | AC8: pl. | AD8: pl.p. | AE8: Ring | AF8: pnt.C | AG8: pnt.H | AH8: pnt.tot. | AI8: ex 1 | AJ8: ex 2 | AK8: pl. | AL8: pl.p. | AM8: Ring | AN8: pnt.C | AO8: pnt.H | AP8: pnt.tot. | AQ8: ex 1 | AR8: ex 2 | AS8: pl. | AT8: pl.p. | AU8: Ring | AV8: pnt.C | AW8: pnt.H | AX8: pnt.tot. | AY8: ex 1 | AZ8: ex 2 | BA8: pl. | BB8: pl.p. | BC8: pl.pnt | BD8: punten | BE8: pl.pnt | BF8: pl.pnt | BG8: punten | BH8: punten | BI8: pl.pnt | BJ8: punten | BK8: Afv. | BL8: Res. | BM8: Afv. Regio | BN8: opmerking
A9: 1 | B9: 988187VS | C9: Jennifer Sekreve | D9: Velasco di Vitalis BF | E9: Z2 | F9: Oost-Veluwse R.J.V., RV. | H9: 71.714 | I9: 0 | J9: =H9+I9 -> 71.714 | K9: 80 | L9: 80 | M9: 1 | N9: 1 | P9: 243 | Q9: 0 | R9: =P9+Q9 -> 243 | S9: 7.5 | T9: 7.5 | U9: 1 | V9: 1 | Z9: =X9+Y9 -> 0 | AD9: 99 | BC9: =N9+V9+AD9+AL9+AT9+BB9 -> 101 | BD9: =J9+R9+Z9+AH9+AP9+AX9 -> 314.714 | BE9: =IF($O$4>0,(LARGE(($N9,$V9,$AD9,$AL9,$AT9,$BB9),1)),"0") -> 99 | BG9: 0 | BH9: 0 | BI9: =BC9-BE9-BF9 -> 2 | BJ9: =BD9-BG9-BH9 -> 314.714 | BK9: 1 | BN9: Kringkampioen
A10: 2 | B10: 938773MP | C10: Kimberly Pap | D10: Martinez | E10: Z2 | F10: Nunspeetse Ruiterclub, RV. | H10: 69.143 | I10: 0 | J10: 69.143 | K10: 70 | L10: 70 | M10: 2 | N10: 2 | R10: 0 | V10: 99 | W10: 1 | X10: 261.5 | Z10: 261.5 | AA10: 8 | AB10: 8 | AC10: 1 | AD10: 1 | BC10: 102 | BD10: 330.643 | BE10: =IF($O$4>0,(LARGE(($N10,$V10,$AD10,$AL10,$AT10,$BB10),1)),"0") -> 99 | BG10: 0 | BH10: 0 | BI10: 3 | BJ10: 330.643 | BK10: 2
A11: 3 | B11: 986604GN | C11: Sophie van Norel | D11: Gotcha-utopia | E11: Z2 | F11: Nunspeetse Ruiterclub, RV. | H11: 65 | I11: 0 | J11: 65 | K11: 65 | L11: 65 | M11: 6 | N11: 6 | P11: 237.5 | Q11: 0 | R11: 237.5 | S11: 7 | T11: 7 | U11: 3 | V11: 3 | W11: 1 | X11: 236.5 | Z11: 236.5 | AA11: 7 | AB11: 7 | AC11: 2 | AD11: 2 | BC11: 11 | BD11: 539 | BE11: =IF($O$4>0,(LARGE(($N11,$V11,$AD11,$AL11,$AT11,$BB11),1)),"0") -> 6 | BG11: 65 | BH11: 0 | BI11: 5 | BJ11: 474 | BK11: 3
A12: 4 | B12: 962900KS | C12: Romy Van der Schaft | D12: Kenzi | E12: Z2 | F12: Sprengenhorst, Africhtingsstal | H12: 67 | I12: 0 | J12: 67 | K12: 70 | L12: 80 | M12: 4 | N12: 4 | P12: 238 | Q12: 0 | R12: 238 | S12: 7 | T12: 7.5 | U12: 2 | V12: 2 | W12: 1 | X12: 236 | Z12: 236 | AA12: 7 | AB12: 7.5 | AC12: 3 | AD12: 3 | BC12: 9 | BD12: 541 | BE12: =IF($O$4>0,(LARGE(($N12,$V12,$AD12,$AL12,$AT12,$BB12),1)),"0") -> 4 | BG12: 67 | BH12: 0 | BI12: 5 | BJ12: 474 | BK12: 4
A13: 5 | B13: 776033BS | C13: Lotte Scherpenzeel | D13: Bandolero | E13: Z2 | F13: Oost-Veluwse R.J.V., RV. | H13: 65.429 | I13: 0 | J13: 65.429 | K13: 65 | L13: 70 | M13: 5 | N13: 5 | P13: 232 | Q13: 0 | R13: 232 | S13: 6.5 | T13: 7 | U13: 4 | V13: 4 | W13: 1 | X13: 196.5 | Z13: 196.5 | AA13: 6 | AB13: 6 | AC13: 5 | AD13: 5 | BC13: 14 | BD13: 493.929 | BE13: =IF($O$4>0,(LARGE(($N13,$V13,$AD13,$AL13,$AT13,$BB13),1)),"0") -> 5 | BG13: 65.429 | BH13: 0 | BI13: 9 | BJ13: 428.5 | BL13: 1
A14: 6 | B14: 866953BV | C14: Helma Franken - Vromen | D14: Bon Jovi | E14: Z2 | F14: Nunspeetse Ruiterclub, RV. | H14: 63.571 | I14: 0 | J14: 63.571 | K14: 55 | L14: 65 | M14: 8 | N14: 8 | P14: 215 | Q14: 0 | R14: 215 | S14: 7 | T14: 7 | U14: 6 | V14: 6 | W14: 1 | X14: 210.5 | Z14: 210.5 | AA14: 6 | AB14: 6 | AC14: 4 | AD14: 4 | BC14: 18 | BD14: 489.071 | BE14: =IF($O$4>0,(LARGE(($N14,$V14,$AD14,$AL14,$AT14,$BB14),1)),"0") -> 8 | BG14: 63.571 | BH14: 0 | BI14: 10 | BJ14: 425.5 | BL14: 2
A15: 7 | B15: 842119HJ | C15: Christel Jansen van der sligte | D15: Hazzle Woods | E15: Z2 | F15: Cannenburgh, RV. HV. De | H15: 64.286 | I15: 0 | J15: 64.286 | K15: 65 | L15: 70 | M15: 7 | N15: 7 | P15: 214 | Q15: 0 | R15: 214 | S15: 6.5 | T15: 6.5 | U15: 7 | V15: 7 | Z15: 0 | AD15: 99 | BC15: 113 | BD15: 278.286 | BE15: =IF($O$4>0,(LARGE(($N15,$V15,$AD15,$AL15,$AT15,$BB15),1)),"0") -> 99 | BG15: 0 | BH15: 0 | BI15: 14 | BJ15: 278.286
A16: 8 | B16: 919278DM | C16: Marijn Maas | D16: D.j | E16: Z2 | F16: Flevoruiters, RV. | H16: 62.286 | I16: 0 | J16: 62.286 | K16: 60 | L16: 65 | M16: 9 | N16: 9 | P16: 201.5 | Q16: 0 | R16: 201.5 | S16: 6.5 | T16: 6.5 | U16: 8 | V16: 8 | Z16: 0 | AD16: 99 | BC16: 116 | BD16: 263.786 | BE16: =IF($O$4>0,(LARGE(($N16,$V16,$AD16,$AL16,$AT16,$BB16),1)),"0") -> 99 | BG16: 0 | BH16: 0 | BI16: 17 | BJ16: 263.786
A17: 9 | B17: 989759MS | C17: Romy Schaftenaar | D17: Milan | E17: Z2 | F17: Schaapskooiruiters, RV. De | H17: 67.571 | I17: 0 | J17: 67.571 | K17: 65 | L17: 70 | M17: 3 | N17: 3 | R17: 0 | V17: 99 | Z17: 0 | AD17: 99 | BC17: 201 | BD17: 67.571 | BE17: =IF($O$4>0,(LARGE(($N17,$V17,$AD17,$AL17,$AT17,$BB17),1)),"0") -> 99 | BG17: 0 | BH17: 0 | BI17: 102 | BJ17: 67.571
A18: 10 | B18: 852306JM | C18: Melanie Mulder | D18: Jody | E18: Z2 | F18: Marleruiters, RV. | J18: 0 | N18: 99 | P18: 226.5 | Q18: 0 | R18: 226.5 | S18: 7 | T18: 8 | U18: 5 | V18: 5 | Z18: 0 | AD18: 99 | BC18: 203 | BD18: 226.5 | BE18: =IF($O$4>0,(LARGE(($N18,$V18,$AD18,$AL18,$AT18,$BB18),1)),"0") -> 99 | BG18: 0 | BH18: 0 | BI18: 104 | BJ18: 226.5

Sheet ZZL
A1: Selectie uitslagen
C2: 1 | D2: =FLOOR((C2+3)/4,1) -> 1 | H2: 192 | I2: 190 | J2: =H2+I2 -> 382 | N2: 1 | P2: 193 | Q2: 193 | R2: =P2+Q2 -> 386 | V2: 2 | X2: 198 | Y2: 198 | Z2: =X2+Y2 -> 396 | AD2: 3 | AF2: 177 | AG2: 177 | AH2: =AF2+AG2 -> 354 | AL2: 4 | AN2: 178 | AO2: 178 | AP2: =AN2+AO2 -> 356 | AT2: 5 | AV2: 179 | AW2: 179 | AX2: =AV2+AW2 -> 358 | BB2: 6 | BC2: =N2+V2+AD2+AL2+AT2+BB2 -> 21 | BD2: =J2+R2+Z2+AH2+AP2+AX2 -> 2232 | BE2: =IF($O$4>0,(LARGE(($N2,$V2,$AD2,$AL2,$AT2,$BB2),1)),"0") -> 6 | BF2: =IF($O$4>0,(LARGE(($N2,$V2,$AD2,$AL2,$AT2,$BB2),2)),"0") -> 5 | BG2: 354 | BH2: 354 | BI2: =BC2-BE2-BF2 -> 10 | BJ2: =BD2-BG2-BH2 -> 1524
A3: Kring: | C3: =Instellingen!B3 -> Kring NVF | F3: Aantal afvaardiging Regio: | O3: 3 | BC3: Aantal wedstrijden: | BL3: =Instellingen!B6 -> 3
A4: Klasse: | C4: ZZL | F4: Aantal afval resultaten: | O4: =Instellingen!B7 -> 1
A5: Cat.: | F5: Plaatsingspunten niet gestart: | O5: =Instellingen!B5 -> 99 | BC5: Aantal reserves: | BL5: 2
F6: Lokatie: | G6: =Instellingen!B36 -> Hulshorst_Nunspeet | O6: =Instellingen!B37 -> Vaassen_Wezep | W6: =Instellingen!B38 -> Dronten_Hierden | AE6: =Instellingen!B39 -> 0 | AM6: =Instellingen!B40 -> 0 | AU6: =Instellingen!B41 -> 0 | BC6: Dressuur | BI6: Pnt. 60% regel | BL6: 210
F7: Datum: | G7: =Instellingen!C36 -> 03_04 nov 2023 | O7: =Instellingen!C37 -> 01_02 dec 2023 | W7: =Instellingen!C38 -> 08_09_15_16 dec 2023 | AE7: =Instellingen!C39 ->  | AM7: =Instellingen!C40 ->  | AU7: =Instellingen!C41 ->  | BC7: Tot. | BD7: Tot. | BE7: afval | BF7: afval | BG7: afval | BH7: afval | BI7: Beste | BJ7: Beste
A8: Pl. | B8: Comb.nr. | C8: Ruiter/amazone | D8: Paard/pony | E8: kl. | F8: vereniging | G8: Ring | H8: pnt.C | I8: pnt.H | J8: pnt.tot | K8: ex 1 | L8: ex 2 | M8: pl. | N8: pl.p. | O8: Ring | P8: pnt.C | Q8: pnt.H | R8: pnt.tot. | S8: ex 1 | T8: ex 2 | U8: pl. | V8: pl.p. | W8: Ring | X8: pnt.C | Y8: pnt. H | Z8: pnt.tot. | AA8: ex 1 | AB8: ex 2 | AC8: pl. | AD8: pl.p. | AE8: Ring | AF8: pnt.C | AG8: pnt.H | AH8: pnt.tot. | AI8: ex 1 | AJ8: ex 2 | AK8: pl. | AL8: pl.p. | AM8: Ring | AN8: pnt.C | AO8: pnt.H | AP8: pnt.tot. | AQ8: ex 1 | AR8: ex 2 | AS8: pl. | AT8: pl.p. | AU8: Ring | AV8: pnt.C | AW8: pnt.H | AX8: pnt.tot. | AY8: ex 1 | AZ8: ex 2 | BA8: pl. | BB8: pl.p. | BC8: pl.pnt | BD8: punten | BE8: pl.pnt | BF8: pl.pnt | BG8: punten | BH8: punten | BI8: pl.pnt | BJ8: punten | BK8: Afv. | BL8: Res. | BM8: Afv. Regio | BN8: opmerking
A9: 1 | B9: 833789IL | C9: Corinda Luttjeboer | D9: I-Go DC | E9: ZZL | F9: Nunspeetse Ruiterclub, RV. | H9: 67.143 | I9: 0 | J9: =H9+I9 -> 67.143 | K9: 70 | L9: 70 | M9: 1 | N9: 1 | P9: 231.5 | Q9: 0 | R9: =P9+Q9 -> 231.5 | S9: 7 | T9: 7 | U9: 1 | V9: 1 | Z9: =X9+Y9 -> 0 | AD9: 99 | BC9: =N9+V9+AD9+AL9+AT9+BB9 -> 101 | BD9: =J9+R9+Z9+AH9+AP9+AX9 -> 298.643 | BE9: =IF($O$4>0,(LARGE(($N9,$V9,$AD9,$AL9,$AT9,$BB9),1)),"0") -> 99 | BG9: 0 | BH9: 0 | BI9: =BC9-BE9-BF9 -> 2 | BJ9: =BD9-BG9-BH9 -> 298.643 | BK9: 1 | BN9: Kringkampioen
A10: 2 | B10: 903836LD | C10: Sanne Diercks | D10: Lydensie | E10: ZZL | F10: Oost-Veluwse R.J.V., RV. | H10: 67 | I10: 0 | J10: 67 | K10: 65 | L10: 70 | M10: 2 | N10: 2 | P10: 228.5 | Q10: 0 | R10: 228.5 | S10: 6.5 | T10: 7 | U10: 2 | V10: 2 | W10: 1 | X10: 223 | Z10: 223 | AA10: 6.5 | AB10: 7 | AC10: 1 | AD10: 1 | BC10: 5 | BD10: 518.5 | BE10: =IF($O$4>0,(LARGE(($N10,$V10,$AD10,$AL10,$AT10,$BB10),1)),"0") -> 2 | BG10: 67 | BH10: 0 | BI10: 3 | BJ10: 451.5 | BK10: 2
A11: 3 | B11: 836186DB | C11: Nicole Broekhuis | D11: Discovery | E11: ZZL | F11: Cannenburgh, RV. HV. De | H11: 60.429 | I11: 0 | J11: 60.429 | K11: 60 | L11: 60 | M11: 6 | N11: 6 | P11: 210.5 | Q11: 0 | R11: 210.5 | S11: 6 | T11: 7 | U11: 4 | V11: 4 | W11: 1 | X11: 215 | Z11: 215 | AA11: 6 | AB11: 6.5 | AC11: 2 | AD11: 2 | BC11: 12 | BD11: 485.929 | BE11: =IF($O$4>0,(LARGE(($N11,$V11,$AD11,$AL11,$AT11,$BB11),1)),"0") -> 6 | BG11: 60.429 | BH11: 0 | BI11: 6 | BJ11: 425.5 | BK11: 3
A12: 4 | B12: 892237DG | C12: Marjolein Gevaert | D12: Dansa's Isadansa | E12: ZZL | F12: Heuvelruiters, RV. | H12: 61.857 | I12: 0 | J12: 61.857 | K12: 60 | L12: 65 | M12: 4 | N12: 4 | P12: 221.5 | Q12: 0 | R12: 221.5 | S12: 5 | T12: 6 | U12: 3 | V12: 3 | W12: 1 | X12: 199 | Z12: 199 | AA12: 6 | AB12: 6.5 | AC12: 4 | AD12: 4 | BC12: 11 | BD12: 482.357 | BE12: =IF($O$4>0,(LARGE(($N12,$V12,$AD12,$AL12,$AT12,$BB12),1)),"0") -> 4 | BG12: 61.857 | BH12: 0 | BI12: 7 | BJ12: 420.5 | BL12: 1
A13: 5 | B13: 659180CF | C13: Willeke Franken | D13: Chanel | E13: ZZL | F13: Randmeerruiters, RV. De | H13: 60.429 | I13: 0 | J13: 60.429 | K13: 60 | L13: 65 | M13: 5 | N13: 5 | R13: 0 | V13: 99 | W13: 1 | X13: 204.5 | Z13: 204.5 | AA13: 6.5 | AB13: 7 | AC13: 3 | AD13: 3 | BC13: 107 | BD13: 264.929 | BE13: =IF($O$4>0,(LARGE(($N13,$V13,$AD13,$AL13,$AT13,$BB13),1)),"0") -> 99 | BG13: 0 | BH13: 0 | BI13: 8 | BJ13: 264.929 | BL13: 2
A14: 6 | B14: 878034FM | C14: Annemarie Jansen - Migchelbrink | D14: Feniks | E14: ZZL | F14: Nunspeetse Ruiterclub, RV. | H14: 63.143 | I14: 0 | J14: 63.143 | K14: 65 | L14: 65 | M14: 3 | N14: 3 | P14: 204.5 | Q14: 0 | R14: 204.5 | S14: 6 | T14: 6 | U14: 5 | V14: 5 | Z14: 0 | AD14: 99 | BC14: 107 | BD14: 267.643 | BE14: =IF($O$4>0,(LARGE(($N14,$V14,$AD14,$AL14,$AT14,$BB14),1)),"0") -> 99 | BG14: 0 | BH14: 0 | BI14: 8 | BJ14: 267.643

Sheet Z1 - Z2 (hidden)
A1: Selectie uitslagen
C2: 1 | D2: =FLOOR((C2+3)/4,1) -> 1 | G2: 192 | H2: 192 | I2: 190 | J2: =H2+I2 -> 382 | N2: 1 | O2: 193 | P2: 193 | Q2: 193 | R2: =P2+Q2 -> 386 | V2: 2 | W2: 198 | X2: 198 | Y2: 198 | Z2: =X2+Y2 -> 396 | AD2: 3 | AE2: 177 | AF2: 177 | AG2: 177 | AH2: =AF2+AG2 -> 354 | AL2: 4 | AM2: 178 | AN2: 178 | AO2: 178 | AP2: =AN2+AO2 -> 356 | AT2: 5 | AU2: 179 | AV2: 179 | AW2: 179 | AX2: =AV2+AW2 -> 358 | BB2: 6 | BC2: =N2+V2+AD2+AL2+AT2+BB2 -> 21 | BD2: =J2+R2+Z2+AH2+AP2+AX2 -> 2232 | BE2: =IF($O$4>0,(LARGE(($N2,$V2,$AD2,$AL2,$AT2,$BB2),1)),"0") -> 6 | BF2: =IF($O$4>0,(LARGE(($N2,$V2,$AD2,$AL2,$AT2,$BB2),2)),"0") -> 5 | BG2: 354 | BH2: 354 | BI2: =BC2-BE2-BF2 -> 10 | BJ2: =BD2-BG2-BH2 -> 1524
A3: Kring: | C3: =Instellingen!B3 -> Kring NVF | BC3: Aantal wedstrijden: | BL3: =Instellingen!B6 -> 3
A4: Klasse: | C4: Z1 - Z2 | F4: Aantal afval resultaten: | O4: =Instellingen!B7 -> 1
A5: Cat.: | F5: Plaatsingspunten niet gestart: | O5: =Instellingen!B5 -> 99
F6: Lokatie: | G6: =Instellingen!B36 -> Hulshorst_Nunspeet | O6: =Instellingen!B37 -> Vaassen_Wezep | W6: =Instellingen!B38 -> Dronten_Hierden | AE6: =Instellingen!B39 -> 0 | AM6: =Instellingen!B40 -> 0 | AU6: =Instellingen!B41 -> 0 | BC6: Dressuur
F7: Datum: | G7: =Instellingen!C36 -> 03_04 nov 2023 | O7: =Instellingen!C37 -> 01_02 dec 2023 | W7: =Instellingen!C38 -> 08_09_15_16 dec 2023 | AE7: =Instellingen!C39 ->  | AM7: =Instellingen!C40 ->  | AU7: =Instellingen!C41 ->  | BC7: Tot. | BD7: Tot. | BE7: afval | BF7: afval | BG7: afval | BH7: afval | BI7: Beste | BJ7: Beste
A8: Pl. | B8: Comb.nr. | C8: Ruiter/amazone | D8: Paard/pony | E8: kl. | F8: vereniging | G8: Ring | H8: pnt.C | I8: pnt.H | J8: pnt.tot | K8: ex 1 | L8: ex 2 | M8: pl. | N8: pl.p. | O8: Ring | P8: pnt.C | Q8: pnt.H | R8: pnt.tot. | S8: ex 1 | T8: ex 2 | U8: pl. | V8: pl.p. | W8: Ring | X8: pnt.C | Y8: pnt. H | Z8: pnt.tot. | AA8: ex 1 | AB8: ex 2 | AC8: pl. | AD8: pl.p. | AE8: Ring | AF8: pnt.C | AG8: pnt.H | AH8: pnt.tot. | AI8: ex 1 | AJ8: ex 2 | AK8: pl. | AL8: pl.p. | AM8: Ring | AN8: pnt.C | AO8: pnt.H | AP8: pnt.tot. | AQ8: ex 1 | AR8: ex 2 | AS8: pl. | AT8: pl.p. | AU8: Ring | AV8: pnt.C | AW8: pnt.H | AX8: pnt.tot. | AY8: ex 1 | AZ8: ex 2 | BA8: pl. | BB8: pl.p. | BC8: pl.pnt | BD8: punten | BE8: pl.pnt | BF8: pl.pnt | BG8: punten | BH8: punten | BI8: pl.pnt | BJ8: punten | BK8: Afv. | BL8: Res. | BN8: opmerking

Sheet Kampioenen
A1: Regio Kampioenen
G2: FALSE | H2: FALSE
A3: Kring: | B3: =Instellingen!B3 -> Kring NVF | E3: Handicap: | H3: Aantal per klasse: | J3: 1
A4: Volgnr. | B4: Comb.nr. | C4: Ruiter/amazone | D4: Paard/pony | E4: Klasse | F4: Cat. | G4: Vereniging | H4: Totaal beste | I4: Totaal perc. | J4: Totaal pl.pnt. | K4: Opmerking
C7: Klasse: B
A8: 1 | B8: 945785NZ | C8: Kyara van der Ziel | D8: No Mercy WV | E8: B | F8: B | G8: Noord Veluwe, RV. PSV | H8: 4 | I8: 136,00 | J8: 6 | K8: Kringkampioen
C10: Klasse: L1
A11: 1 | B11: 972943OS | C11: Laura Spronk | D11: Olympia Ds | E11: L1 | F11: L1 | G11: Heuvelruiters, RV. | H11: 2 | I11: 149,33 | J11: 101 | K11: Kringkampioen
C13: Klasse: L2
A14: 1 | B14: 946858NS | C14: Laura Spronk | D14: New Star | E14: L2 | F14: L2 | G14: Heuvelruiters, RV. | H14: 2 | I14: 148,00 | J14: 5 | K14: Kringkampioen
C16: Klasse: M1
A17: 1 | B17: 990847NV | C17: Carlijn Vaessen | D17: Nexter Carlos O | E17: M1 | F17: M1 | G17: Heuvelruiters, RV. | H17: 2 | I17: 144,67 | J17: 4 | K17: Kringkampioen
C19: Klasse: M2
A20: 1 | B20: 959143CB | C20: Robin Blok | D20: Customzadels Lausanne | E20: M2 | F20: M2 | G20: Heuvelruiters, RV. | H20: 2 | I20: 135,00 | J20: 7 | K20: Kringkampioen
C22: Klasse: Z1
A23: 1 | B23: 991171HN | C23: Ellemijn van Norel | D23: Holly | E23: Z1 | F23: Z1 | G23: Schaapskooiruiters, RV. De | H23: 2 | I23: 88,00 | J23: 8 | K23: Kringkampioen
C25: Klasse: Z2
A26: 1 | B26: 988187VS | C26: Jennifer Sekreve | D26: Velasco di Vitalis BF | E26: Z2 | F26: Z2 | G26: Oost-Veluwse R.J.V., RV. | H26: 2 | I26: 90,00 | J26: 101 | K26: Kringkampioen
C28: Klasse: ZZL
A29: 1 | B29: 833789IL | C29: Corinda Luttjeboer | D29: I-Go DC | E29: ZZL | F29: ZZL | G29: Nunspeetse Ruiterclub, RV. | H29: 2 | I29: 85,43 | J29: 101 | K29: Kringkampioen

Sheet Diversen
A1: Selectie wedstrijd
C2: 48 | D2: =FLOOR((C2+3)/4,1) -> 12 | H2: 192 | I2: 190 | J2: =H2+I2 -> 382
A3: Kring: | C3: =Instellingen!B3 -> Kring NVF | E3: Wedstrijd nummer: | H3: 2
A6: Import gegevens
A8: Pl. | B8: Comb.nr. | C8: Ruiter/amazone | D8: Paard/pony | E8: klasse | F8: cat. | G8: vereniging | H8: pnt.C | I8: pnt.H | J8: pnt.tot | K8: ex 1 | L8: ex 2 | M8: perc. | N8: opmerking

Sheet Instellingen
B1: Waarde | C1: Opmerking
A2: Gegevens:
A3: Naam van de Kring: | B3: Kring NVF
A4: Interval plaatsingspunten: | B4: 1 | C4: 1=(1,2,3,etc) / 2=(1,3,5,etc)
A5: Plaatsingspunten niet gestart: | B5: 99
A6: Aantal selectie wedstrijden: | B6: 3
A7: Aantal afval resultaten: | B7: 1
A8: Aantal jury's: | B8: 1
A9: Ex-aequo punten per wedstrijd | B9: 1 | C9: 1=ja / 0=nee
A10: Plaatsingspunten niet gefinisht | B10: 90 | C10: Blanko is volgens plaatsing
A11: Importeren punten en/of plaatsing | B11: 1: Punten van de proef
A13: Afvaardiging Regiokampioenschappen | C13: Aanmelden, Afmelden, Blanko is iedereen
A14: Klasse Z1-Z2 cat. CDE samenvoegen | B14: Nee
A15: Klasse L1-L2 cat. AB samenvoegen | B15: Nee
A17: Klasse BB verbergen | B17: Nee
A18: Tabbladen B, L1-L2, M1-M2, Z1-Z2 nodig | B18: Nee
A23: Volgorde ex-aequo regeling: | C23: (De laagste waarde heeft voorrang, niet ingevulde gegevens doen niet mee voor de volgorde van het resultaat)
A24: Totaal beste plaatsingspunten: | B24: 1 | C24: (dit is een vaste waarde en heeft de hoogste voorrang)
A25: Plaatsingspunten 6e wedstrijd:
A26: Plaatsingspunten 5e wedstrijd:
A27: Plaatsingspunten 4e wedstrijd:
A28: Plaatsingspunten 3e wedstrijd: | B28: 2
A29: Plaatsingspunten 2e wedstrijd:
A30: Plaatsingspunten 1e wedstrijd:
A31: Totaal alle plaatsingspunten: | B31: 3
A32: Totaal behaalde punten beste wedstrijden:
A33: Totaal behaalde punten alle wedstrijden: | B33: 4
A35: Omschrijving | B35: Lokatie | C35: Datum
A36: 1e wedstrijd | B36: Hulshorst_Nunspeet | C36: 03_04 nov 2023
A37: 2e wedstrijd | B37: Vaassen_Wezep | C37: 01_02 dec 2023
A38: 3e wedstrijd | B38: Dronten_Hierden | C38: 08_09_15_16 dec 2023
A39: 4e wedstrijd
A40: 5e wedstrijd
A41: 6e wedstrijd

Sheet Afvaardiging
A1: Afvaardiging aan de Regio Kampioenschappen
A3: Kring: | B3: =Instellingen!B3 -> Kring NVF | E3: Discipline: | G3: Dressuur
A4: Volgnr. | B4: Comb.nr. | C4: Ruiter / amazone | D4: Paard/pony | E4: Klasse | F4: Cat. | G4: Vereniging | H4: Opmerking | I4: =IF(C4<>"",RIGHT(C4,LEN(C4)-SEARCH(" ",C4,1)),"") -> / amazone | J4: =IF(C4<>"",LEFT(C4, SEARCH(" ",C4,1)),"") -> Ruiter
C6: Klasse: B | D6: Afvaardiging: 5
A7: 1 | B7: 945785NZ | C7: Kyara van der Ziel | D7: No Mercy WV | E7: B | G7: Noord Veluwe, RV. PSV | H7: Kringkampioen
A8: 2 | B8: 846769RV | C8: Luna Veldkamp | D8: Royally Impressed | E8: B | G8: Heuvelruiters, RV.
A9: 3 | B9: 991594MV | C9: Denise Vonk | D9: Maigret | E9: B | G9: Nunspeetse Ruiterclub, RV.
A10: 4 | B10: 992423ND | C10: Noreen van den Dragt | D10: Nanisina | E10: B | G10: Nunspeetse Ruiterclub, RV.
A11: 5 | B11: 991870OK | C11: Chayenne Karel | D11: Odin Royal DDH | E11: B | G11: Heuvelruiters, RV.
A12: 1e Res. | B12: 962598IH | C12: Tamara Van der Hilst | D12: Irma | E12: B | G12: Noord Veluwe, RV. PSV
A13: 2e Res. | B13: 981943OH | C13: Malou Haverkamp | D13: Odivo | E13: B | G13: Schaapskooiruiters, RV. De
C15: Klasse: L1 | D15: Afvaardiging: 5
A16: 1 | B16: 972943OS | C16: Laura Spronk | D16: Olympia Ds | E16: L1 | G16: Heuvelruiters, RV. | H16: Kringkampioen
A17: 2 | B17: 987599OB | C17: Wendy Uijt de Boogaardt | D17: Ojay | E17: L1 | G17: Hippisch Oosterwolde, RV.
A18: 3 | B18: 984186OS | C18: Laura Spronk | D18: Orlando Ds | E18: L1 | G18: Heuvelruiters, RV.
A19: 4 | B19: 979731MG | C19: Elise Geschiere | D19: Mon Toto DC | E19: L1 | G19: Flevoruiters, RV.
A20: 5 | B20: 972741OH | C20: Liesbeth Hop | D20: Oscar GW | E20: L1 | G20: Randmeerruiters, RV. De
A21: 1e Res. | B21: 973703NB | C21: Willeke Den Besten | D21: Nathalie DB | E21: L1 | G21: Noord Veluwe, RV. PSV
A22: 2e Res. | B22: 945906ML | C22: Anouk Linthorst | D22: Macho DS | E22: L1 | G22: WWNA, RV.
C24: Klasse: L2 | D24: Afvaardiging: 4
A25: 1 | B25: 946858NS | C25: Laura Spronk | D25: New Star | E25: L2 | G25: Heuvelruiters, RV. | H25: Kringkampioen
A26: 2 | B26: 992809NS | C26: Romy Schaftenaar | D26: NOU NOU | E26: L2 | G26: Schaapskooiruiters, RV. De
A27: 3 | B27: 984443NV | C27: Diana Vinke | D27: Navaro | E27: L2 | G27: Nunspeetse Ruiterclub, RV.
A28: 4 | B28: 959838NR | C28: Satu Pleijter - Rahikka | D28: Nicolai | E28: L2 | G28: Noord Veluwe, RV. PSV
A29: 1e Res. | B29: 971842NV | C29: Arnoud Te Velde | D29: Noud FZ | E29: L2 | G29: Oost-Veluwse R.J.V., RV.
A30: 2e Res. | B30: 972903OG | C30: Stefanie De Groot | D30: Odile | E30: L2 | G30: Heuvelruiters, RV.
C32: Klasse: M1 | D32: Afvaardiging: 3
A33: 1 | B33: 990847NV | C33: Carlijn Vaessen | D33: Nexter Carlos O | E33: M1 | G33: Heuvelruiters, RV. | H33: Kringkampioen
A34: 2 | B34: 991317FV | C34: Diana Vinke | D34: Kimberly | E34: M1 | G34: Nunspeetse Ruiterclub, RV.
A35: 3 | B35: 970931NU | C35: Marieta Doornwaard - Uitslag | D35: Nadiesch | E35: M1 | G35: Heuvelruiters, RV.
A36: 1e Res. | B36: 928668MB | C36: Dianne Den Besten | D36: Michigan DB | E36: M1 | G36: Noord Veluwe, RV. PSV
A37: 2e Res. | B37: 981651MK | C37: Anne Klein | D37: Ma Bel La | E37: M1 | G37: Heuvelruiters, RV.
C39: Klasse: M2 | D39: Afvaardiging: 6
A40: 1 | B40: 959143CB | C40: Robin Blok | D40: Customzadels Lausanne | E40: M2 | G40: Heuvelruiters, RV. | H40: Kringkampioen
A41: 2 | B41: 962881MF | C41: Suzanne Feberwee | D41: Morgenster Norel | E41: M2 | G41: WWNA, RV.
A42: 3 | B42: 946899NH | C42: Alexandra Hayes | D42: Noblesse Fortuna | E42: M2 | G42: Oost-Veluwse R.J.V., RV.
A43: 4 | B43: 888687KH | C43: Angela Hooghordel | D43: Kryptonite | E43: M2 | G43: Nunspeetse Ruiterclub, RV.
A44: 5 | B44: 874868JT | C44: Rosalie Tessemaker | D44: Jana-L | E44: M2 | G44: Horsthoekruiters, RV.
A45: 6 | B45: 926598MG | C45: Elise Geschiere | D45: Mydrea V/D Sfeerhoeve | E45: M2 | G45: Flevoruiters, RV.
A46: 1e Res. | B46: 955913NJ | C46: Laura Jansen | D46: New Star | E46: M2 | G46: Nunspeetse Ruiterclub, RV.
A47: 2e Res. | B47: 938825NV | C47: Julia Vrolijken | D47: Nashville SC | E47: M2 | G47: Nunspeetse Ruiterclub, RV.
C49: Klasse: Z1 | D49: Afvaardiging: 5
A50: 1 | B50: 991171HN | C50: Ellemijn van Norel | D50: Holly | E50: Z1 | G50: Schaapskooiruiters, RV. De | H50: Kringkampioen
A51: 2 | B51: 876144JS | C51: Lotte Schut | D51: Jazzy T | E51: Z1 | G51: Schaapskooiruiters, RV. De
A52: 3 | B52: 927495LH | C52: Liesbeth Hop | D52: Larouche | E52: Z1 | G52: Randmeerruiters, RV. De
A53: 4 | B53: 904477LW | C53: Stefanie Waaijenberg | D53: Lago Maggiore | E53: Z1 | G53: Nunspeetse Ruiterclub, RV.
A54: 5 | B54: 897187LG | C54: Rosan Van de Goor | D54: Lavendel | E54: Z1 | G54: Heuvelruiters, RV.
A55: 1e Res. | B55: 884764KG | C55: Anna Te Grotenhuis | D55: King Arthur | E55: Z1 | G55: Heuvelruiters, RV.
A56: 2e Res. | B56: 865730IS | C56: Marianne Freriks - Schutte | D56: Ikeja | E56: Z1 | G56: Cannenburgh, RV. HV. De
C58: Klasse: Z2 | D58: Afvaardiging: 4
A59: 1 | B59: 988187VS | C59: Jennifer Sekreve | D59: Velasco di Vitalis BF | E59: Z2 | G59: Oost-Veluwse R.J.V., RV. | H59: Kringkampioen
A60: 2 | B60: 938773MP | C60: Kimberly Pap | D60: Martinez | E60: Z2 | G60: Nunspeetse Ruiterclub, RV.
A61: 3 | B61: 986604GN | C61: Sophie van Norel | D61: Gotcha-utopia | E61: Z2 | G61: Nunspeetse Ruiterclub, RV.
A62: 4 | B62: 962900KS | C62: Romy Van der Schaft | D62: Kenzi | E62: Z2 | G62: Sprengenhorst, Africhtingsstal
A63: 1e Res. | B63: 776033BS | C63: Lotte Scherpenzeel | D63: Bandolero | E63: Z2 | G63: Oost-Veluwse R.J.V., RV.
A64: 2e Res. | B64: 866953BV | C64: Helma Franken - Vromen | D64: Bon Jovi | E64: Z2 | G64: Nunspeetse Ruiterclub, RV.
C66: Klasse: ZZL | D66: Afvaardiging: 3
A67: 1 | B67: 833789IL | C67: Corinda Luttjeboer | D67: I-Go DC | E67: ZZL | G67: Nunspeetse Ruiterclub, RV. | H67: Kringkampioen
A68: 2 | B68: 903836LD | C68: Sanne Diercks | D68: Lydensie | E68: ZZL | G68: Oost-Veluwse R.J.V., RV.
A69: 3 | B69: 836186DB | C69: Nicole Broekhuis | D69: Discovery | E69: ZZL | G69: Cannenburgh, RV. HV. De
A70: 1e Res. | B70: 892237DG | C70: Marjolein Gevaert | D70: Dansa's Isadansa | E70: ZZL | G70: Heuvelruiters, RV.
A71: 2e Res. | B71: 659180CF | C71: Willeke Franken | D71: Chanel | E71: ZZL | G71: Randmeerruiters, RV. De
